Workbook

Sheet Auswertung
M2: Stall / Ställe / Partie Nr.: | O2: Strg+h=Eingaben löschen
C3: =IF(C10<>"","vorläufige Auswertung Schweinemast",IF(E36<>"","vorläufige Auswertung Schweinemast","Auswertung Schweinemast")) -> Auswertung Schweinemast | I3: Berechnet | N3: 1 | V3: =Futter!$D$5 -> Futtermittelfirma | DI3: Mastauswertung
I4: am: | M4: Standort: | V4: =Futter!$D$50 -> 0
C5: Name: | I5: =TODAY() -> 2020-09-01 | M5: Stallplätze: | V5: =Futter!$D$95 -> 0 | DH5: =C5 -> Name: | DI5: Stall: | DJ5: =IF($L$75="","",$L$75) ->  | DK5: Händler: | DL5: =IF($G$5="","",$G$5) -> 
C6: Ort: | M6: Silo(s) Nr.: | DH6: =C6 -> Ort: | DI6: Stallplätze: | DJ6: =IF($L$76="","",$L$76) ->  | DK6: Einstalldatum: | DL6: =IF($O$76="","",$O$76) -> 
C7: Zusatz: | M7: Umtriebe/Jahr: | DH7: =C7 -> Zusatz: | DI7: Rasse: | DJ7: =IF($L$77="","",$L$77) ->  | DK7: Ausstalldatum: | DL7: =IF($O$77="","",$O$77) -> 
C8: Betriebs Nr.: | G8: =IF(N8=""," Bitte angeben!!---->","") -> Bitte angeben!!----> | I8: Berechnung incl. Steuer J/N?: | T8: Deckberechnung Ja oder Nein
C10: =IF(E15=0,"",IF((E15+E16+E17)>E14,"Achtung: Zahl der abgegangen Tiere ist grösser als Zukauf Ferkel!!!",IF((E14-E15-E16-E17)<6,"",IF((E14-E15-E16-E17)>50,"",IF((E14-E15-E16-E17)<=50,CONCATENATE("Achtung: Es befinden sich noch ",E14-E15-E16-E17," Tiere in der Nachmast, oder der Eintrag bei Verluste ist nicht korrekt!!!!","")))))) ->  | T10: =IF(C10<>"",1,0) -> 0 | DH10: 1.: Erfassung
C11: I. Erfassung: | E11: Ø EK-Datum: | F11: =IF(Tiere_Zu_Abgang!T21=0,"",Tiere_Zu_Abgang!U21) -> 2020-05-15 | H11: Ø VK-Datum: | I11: =IF(Tiere_Zu_Abgang!T38=0,"",Tiere_Zu_Abgang!T39) -> 2020-08-19T18:00:00 | M11: =IF(T14>0,"III. Deckungsbeitragsrechnung",IF(T13>0,"Berechnung Deckungsbeitrag nicht möglich, da Durchgang noch läuft!!","III. Deckungsbeitragsrechnung")) -> III. Deckungsbeitragsrechnung | T11: =IF(E35<>"",1,0) -> 0
C12: =IF(Tiere_Zu_Abgang!V83>0,"Achtung: Berechnung nicht möglich, da im Blatt Tiere-Zu-Abgang einige Daten fehlen!!","") ->  | T12: =IF(E15=0,1,0) -> 0
C13: Tiere Zu- u. Abgang | E13: Stück | F13: Ø kg/Tier | G13: Ø Euro/Tier | H13: Euro/Gesamt | I13: Ø Euro/kg | M13: 1.: Ertrag | O13: Je verkauftes Mastschwein | Q13: Gesamt Durchgang | T13: =SUM(T10:T12) -> 0 | DH13: Tierdaten: | DI13: Stück | DJ13: kg/Stück | DK13: DM/Stück | DL13: DM gesamt | DM13: DM/kg
C14: Zukauf Ferkel: | E14: =Tiere_Zu_Abgang!J21 -> 100 | F14: =Tiere_Zu_Abgang!S21 -> 30 | G14: =IF(E14=0,0,H14/E14) -> 100 | H14: =Tiere_Zu_Abgang!X21 -> 10000 | I14: =IF(F14=0,0,IF(G14=0,0,Tiere_Zu_Abgang!M21/Tiere_Zu_Abgang!S21)) -> 3.333333333 | T14: =IF(E14>0,0,IF(T13>0,T13,T13)) -> 0 | DH14: Zukauf Ferkel: | DI14: =$M$88 -> 0 | DJ14: =IF($E$14=0,0,$N$88/$M$88) ->  | DK14: =$O$88 -> 0 | DL14: =$P$88 -> 0 | DM14: =IF($P$88=0,0,$P$88/$N$88) -> 0
C15: Verkauf Mastschweine: | E15: =Tiere_Zu_Abgang!J38 -> 95 | F15: =Tiere_Zu_Abgang!AB38 -> 115.7894737 | G15: =IF(E15=0,0,H15/E15) -> 136.8421053 | H15: =Tiere_Zu_Abgang!X38 -> 13000 | I15: =IF(F15=0,0,IF(G15=0,0,Tiere_Zu_Abgang!S38)) -> 1.497222222 | M15: Mastschweine: | O15: =IF(E15=0,0,Q15/E15) -> 136.8421053 | Q15: =$H$15 -> 13000 | AI15: Mastschweine | AJ15: =Q15 -> 13000 | DH15: Verkauf Mastschweine: | DI15: =$L$105 -> 0 | DJ15: =IF($E$15=0,0,$M$105/$L$105) ->  | DK15: =IF($P$105=0,0,$P$105/$L$105) -> 0 | DL15: =$P$105 -> 0 | DM15: =IF($P$105=0,0,$P$105/$M$105) -> 0
C16: Notschlachtungen: | E16: =Tiere_Zu_Abgang!U47 -> 0 | F16: =Tiere_Zu_Abgang!V47 -> 0 | G16: =IF(H16=0,0,H16/E16) -> 0 | H16: =Tiere_Zu_Abgang!Y47 -> 0 | I16: =IF(F16=0,0,IF(G16=0,0,(Tiere_Zu_Abgang!L48/Tiere_Zu_Abgang!J48)/F16)) -> 0 | M16: Notschlachtungen: | O16: =IF(E16=0,0,Q16/E16) -> 0 | Q16: =$H$16 -> 0 | AI16: Notschlachtungen | AJ16: =Q16 -> 0 | DH16: Notschlachtungen: | DI16: =$M$116 -> 0 | DJ16: =IF($E$16=0,0,$N$116/$M$116) -> 0 | DK16: =IF($O$116=0,0,$O$116/$M$116) -> 0 | DL16: =$O$116 -> 0 | DM16: =IF($O$116=0,0,$O$116/$N$116) -> 0
C17: Verluste: | E17: =Tiere_Zu_Abgang!J83 -> 5 | F17: =IF(E17=0,0,Tiere_Zu_Abgang!U83) -> 320 | M17: Gesamtertrag: | O17: =IF(Q17=0,0,Q17/(E15+E16)) -> 136.8421053 | Q17: =SUM(Q15:Q16) -> 13000 | AI17: Ferkel Einkauf | AJ17: =Q20 -> 10000 | DH17: Verluste: | DI17: =$M$132 -> 0 | DJ17: =IF($E$17=0,0,$N$132/$M$132) -> 
AI18: Futtermittel | AJ18: =Q21 -> 2940
C19: Futterverbrauch: | E19: Lieferant: | F19: =IF(V4=0,V3,IF(V5=0,CONCATENATE(V3," + ",V4),CONCATENATE(V3," + ",V4,"+",V5,""))) -> Futtermittelfirma | M19: 2.: Aufwand | T19: =E14-E15-E16-E17 -> 0 | U19: <---fehlende Tiere | AI19: Variable Kosten | AJ19: =Q22 -> 650
C20: Futtersorte | E20: kg / Tier | F20: dt | G20: Ø Euro/dt | H20: Euro gesamt | M20: Ferkel: | O20: =IF(E14=0,0,IF(E15=0,0,G14)) -> 100 | Q20: =$H$14 -> 10000 | AI20: Feste Kosten | AJ20: =T39 -> 170.9589041 | DH20: Futteraufwand: | DJ20: dt | DK20: DM/dt | DL20: DM gesamt
C21: =IF(Futter!$X$41="","",Futter!$X$41) -> Vormast | E21: =IF(E14=0,"",IF(Futter!$X$61="","",(Futter!$X$61/E14)*100)) -> 180 | F21: =IF(Futter!$X$61="","",Futter!$X$61) -> 180 | G21: =IF(F21="","",IF(H21="",0,H21/F21)) -> 8.333333333 | H21: =IF(Futter!$X$81="","",Futter!$X$81) -> 1500 | M21: Futtermittel: | O21: =IF(E14=0,0,IF(E15=0,0,Q21/E15)) -> 30.94736842 | Q21: =IF(G28="",0,$H$28) -> 2940 | AI21: =IF(AJ21=0,"",IF(AJ21<0,"Verlust","Gewinn")) -> Verlust | AJ21: =Q38 -> -760.9589041 | DH21: Futterverbrauch Starter: | DJ21: =$AL$16 -> 0 | DK21: =$AM$16 -> 0 | DL21: =$AN$16 -> 0
C22: =IF(Futter!$Y$41="","",Futter!$Y$41) -> Mittelmast | E22: =IF(E14=0,"",IF(Futter!$Y$61="","",Futter!$Y$61/E14*100)) -> 5 | F22: =IF(Futter!$Y$61="","",Futter!$Y$61) -> 5 | G22: 30 | H22: =IF(Futter!$Y$81="","",Futter!$Y$81) -> 150 | M22: Variable Kosten: | O22: =IF(E14=0,0,IF(E15=0,0,Q22/E15)) -> 6.842105263 | Q22: =SUM(E31:E33)+SUM(I30:I33) -> 650 | AI22: =IF(AJ22=0,"",IF(AJ22>0,"Gewinn")) ->  | AJ22: =IF(Q38>0,Q38,0) -> 0 | DH22: Futterverbrauch Vormast: | DJ22: =$AL$22 -> 0 | DK22: =$AM$22 -> 0 | DL22: =$AN$22 -> 0
C23: =IF(Futter!$Z$41="","",Futter!$Z$41) -> Endmast I | E23: =IF(E14=0,"",IF(Futter!$Z$61="","",Futter!$Z$61/E14*100)) -> 6 | F23: =IF(Futter!$Z$61="","",Futter!$Z$61) -> 6 | G23: =IF(F23="","",IF(H23="",0,H23/F23)) -> 15 | H23: =IF(Futter!$Z$81="","",Futter!$Z$81) -> 90 | M23: Verluste: | O23: =IF(E14=0,0,IF(E15=0,0,((Tiere_Zu_Abgang!L21/Tiere_Zu_Abgang!J21)*E17)/E15)) -> 5.263157895
C24: =IF(Futter!$AA$41="","",Futter!$AA$41) -> Endmast II | E24: =IF(E14=0,"",IF(Futter!$AA$61="","",Futter!$AA$61/E14*100)) -> 7 | F24: =IF(Futter!$AA$61="","",Futter!$AA$61) -> 7 | G24: =IF(F24="","",IF(H24="",0,H24/F24)) -> 21.42857143 | H24: =IF(Futter!$AA$81="","",Futter!$AA$81) -> 150 | M24: Gesamtaufwand: | O24: =IF(E14=0,0,SUM(O20:O23)) -> 143.0526316 | Q24: =SUM(Q20:Q22) -> 13590 | DH24: Futterverbrauch Endmast I.: | DJ24: =$AL$30 -> 0 | DK24: =$AM$30 -> 0 | DL24: =$AN$30 -> 0
C25: =IF(Futter!$AB$41="","",Futter!$AB$41) -> ddd | E25: =IF(E14=0,"",IF(Futter!$AB$61="","",Futter!$AB$61/E14*100)) -> 8 | F25: =IF(Futter!$AB$61="","",Futter!$AB$61) -> 8 | G25: =IF(F25="","",IF(H25="",0,H25/F25)) -> 31.25 | H25: =IF(Futter!$AB$81="","",Futter!$AB$81) -> 250
C26: =IF(Futter!$AC$41="","",Futter!$AC$41) -> dddd | E26: =IF(E14=0,"",IF(Futter!$AC$61="","",Futter!$AC$61/E14*100)) -> 9 | F26: =IF(Futter!$AC$61="","",Futter!$AC$61) -> 9 | G26: =IF(F26="","",IF(H26="",0,H26/F26)) -> 23.33333333 | H26: =IF(Futter!$AC$81="","",Futter!$AC$81) -> 210 | M26: 3.: Deckungsbeitrag
C27: =IF(Futter!$AD$41="","",Futter!$AD$41) -> erer | E27: =IF(E14=0,"",IF(Futter!$AD$61="","",Futter!$AD$61/E14*100)) -> 25 | F27: =IF(Futter!$AD$61="","",Futter!$AD$61) -> 25 | G27: =IF(F27="","",IF(H27="",0,H27/F27)) -> 23.6 | H27: =IF(Futter!$AD$81="","",Futter!$AD$81) -> 590 | M27: ="=> Deckungsbeitrag 1:" -> => Deckungsbeitrag 1: | O27: =IF(T14>0,0,IF(T13>0,0,O17-O24)) -> -6.210526316 | Q27: =IF(T14>0,0,IF(T13>0,0,Q17-Q24)) -> -590 | DH27: Futterverbrauch Endmast II.: | DJ27: =$AL$36 -> 0 | DK27: =$AM$36 -> 0 | DL27: =$AN$36 -> 0
C28: Futterverbrauch gesamt: | E28: =IF(E14=0,"",IF(Futter!$AJ$61="","",Futter!$AJ$61/E14*100)) -> 240 | F28: =IF(Futter!$AJ$61=0,"",Futter!$AJ$61) -> 240 | G28: 12.25 | H28: =IF(Futter!$AJ$81=0,"",Futter!$AJ$81) -> 2940 | DH28: Futterverbrauch gesamt: | DJ28: =$AL$38 -> 0 | DK28: =$AM$38 -> 0 | DL28: =$AN$38 -> 0
B29: by Heinr.-Bernh. Muenzebrock Version 2020 | M29: Feste Kosten: | N29: Ges-Kost/Jahr | O29: =SUM(O30:O37) -> 1.709589041 | Q29: =SUM(Q30:Q37) -> 170.9589041 | T29: Berechnung der Kosten/Tier
C30: Variable Kosten: | G30: =IF(Kosten!$R$18=0,"",Kosten!$R$18) ->  | I30: =IF(Kosten!$R$19="","",Kosten!$R$19) -> 0 | M30: =IF(Kosten!W21=0,"",Kosten!W21) -> Pacht: | N30: =IF(M30="","",V30) -> 500 | O30: =IF($T$14>0,0,IF(M30="","",T30)) -> 1.424657534 | Q30: =IF($T$14>0,0,IF(M30="","",U30)) -> 142.4657534 | T30: =IF($E$14=0,0,U30/$E$14) -> 1.424657534 | U30: =IF($E$14=0,0,IF($V$30=0,0,IF($N$7="",V30/W42,V30/$N$7))) -> 142.4657534 | V30: =IF(M30="",0,IF(T14>0,0,IF(Kosten!W22=0,"",Kosten!W22))) -> 500 | DH30: Sonstige Spezialkosten:
C31: =IF(Kosten!$O$18=0,"",Kosten!$O$18) -> Tierarzt u. Medikamente: | E31: =IF(Kosten!$O$19="","",Kosten!$O$19) -> 500 | G31: =IF(Kosten!$S$18=0,"",Kosten!$S$18) ->  | I31: =IF(Kosten!$S$19="","",Kosten!$S$19) -> 0 | M31: =IF(Kosten!X21=0,"",Kosten!X21) -> Gülleabgabe | N31: 100 | O31: 0.2849315068 | Q31: 28.49315068 | T31: 0.2849315068 | U31: =IF($E$14=0,0,IF($V$30=0,0,IF($N$7="",V31/W42,V31/$N$7))) -> 28.49315068 | V31: =IF(M31="",0,IF(T14>0,0,IF(Kosten!X22=0,"",Kosten!X22))) -> 100 | DH31: Tierarzt, Medikamente, Hygiene: | DI31: =$AK$52 -> 0 | DK31: Pacht: | DL31: =$AN$52 -> 0
C32: =IF(Kosten!$P$18=0,"",Kosten!$P$18) -> Heizung: | E32: =IF(Kosten!$P$19="","",Kosten!$P$19) -> 150 | G32: =IF(Kosten!$T$18=0,"",Kosten!$T$18) ->  | I32: =IF(Kosten!$T$19="","",Kosten!$T$19) -> 0 | M32: =IF(Kosten!Y21=0,"",Kosten!Y21) ->  | T32: 0 | U32: =IF($E$14=0,0,IF($V$30=0,0,IF($N$7="",V32/W42,V32/$N$7))) -> 0 | V32: =IF(M32="",0,IF(T14>0,0,IF(Kosten!Y22=0,"",Kosten!Y22))) -> 0 | DH32: Strom, Wasser, Geräte: | DI32: ="$ae$" -> $ae$ | DK32: Lohn: | DL32: ="$ah$" -> $ah$
C33: =IF(Kosten!$Q$18=0,"",Kosten!$Q$18) ->  | E33: =IF(Kosten!$Q$19="","",Kosten!$Q$19) -> 0 | G33: =IF(Kosten!$U$18=0,"",Kosten!$U$18) ->  | I33: =IF(Kosten!$U$19="","",Kosten!$U$19) -> 0 | M33: =IF(Kosten!Z21=0,"",Kosten!Z21) ->  | T33: 0 | U33: =IF($E$14=0,0,IF($V$30=0,0,IF($N$7="",V33/W42,V33/$N$7))) -> 0 | V33: =IF(M33="",0,IF(T14>0,0,IF(Kosten!Z22=0,"",Kosten!Z22))) -> 0 | DH33: Beiträge (Tierseuchenkasse): | DI33: =$AK$61 -> 0 | DK33: Heizung, Gas: | DL33: =$AN$61 -> 0
M34: =IF(Kosten!AA21=0,"",Kosten!AA21) ->  | T34: 0 | U34: =IF($E$14=0,0,IF($V$30=0,0,IF($N$7="",V34/W42,V34/$N$7))) -> 0 | V34: =IF(M34="",0,IF(T14>0,0,IF(Kosten!AA22=0,"",Kosten!AA22))) -> 0
C35: II. Mastverlauf | E35: =IF($E$14=0,"",IF($E$15=0,"",IF(($E$14-$E$15-$E$16-$E$17)>25,"vorläufig, da Durchgang noch nicht beendet!!",""))) ->  | I35: =IF(E12=0,"",IF(E13=0,"",Tiere_Zu_Abgang!AB36)) ->  | M35: =IF(Kosten!AB21=0,"",Kosten!AB21) ->  | T35: 0 | U35: =IF($E$14=0,0,IF($V$30=0,0,IF($N$7="",V35/W42,V35/$N$7))) -> 0 | V35: =IF(M35="",0,IF(T14>0,0,IF(Kosten!AB22=0,"",Kosten!AB22))) -> 0
G36: Ø Verkaufsgewicht: | I36: =IF($E$14=0,"",IF($E$15=0,"",Tiere_Zu_Abgang!$AB$38)) -> 115.7894737 | M36: =IF(Kosten!AC21=0,"",Kosten!AC21) ->  | T36: 0 | U36: =IF($E$14=0,0,IF($V$30=0,0,IF($N$7="",V36/W42,V36/$N$7))) -> 0 | V36: =IF(M36="",0,IF(T14>0,0,IF(Kosten!AC22=0,"",Kosten!AC22))) -> 0 | DH36: 2.: Mastverlauf
C37: ="Ø Futtertage:" -> Ø Futtertage: | E37: =IF(Tiere_Zu_Abgang!$T$21=0,"",IF(Tiere_Zu_Abgang!$T$38=0,"",IF($E$14=0,"",IF($E$15=0,TODAY()-($F$11+1),IF($I$11="",TODAY()-($F$11+1),($I$11-1)-($F$11+1)))))) -> 94.75 | G37: Ø Einstallgewicht | I37: =IF($E$14=0,"",Tiere_Zu_Abgang!$S$21) -> 30 | M37: =IF(Kosten!AD21=0,"",Kosten!AD21) ->  | T37: 0 | U37: =IF($E$14=0,0,IF($V$30=0,0,IF($N$7="",V37/W42,V37/$N$7))) -> 0 | V37: =IF(M37="",0,IF(T14>0,0,IF(Kosten!AD22=0,"",Kosten!AD22))) -> 0
C38: Belegungszeit /Tage: | E38: =IF(Tiere_Zu_Abgang!$Z$39=0,"",Tiere_Zu_Abgang!$Z$39) -> 97 | G38: Ø Ausschlachtung: | I38: =IF($E$14=0,"",IF($E$15=0,"",IF(Tiere_Zu_Abgang!$AD$38<50,"",Tiere_Zu_Abgang!$AD$38/100))) -> 0.8181818182 | M38: ="=> Deckungsbeitrag 2:" -> => Deckungsbeitrag 2: | O38: =IF(T14>0,0,IF(T13>0,0,O27-O29)) -> -7.920115357 | Q38: =IF(T14>0,0,IF(T13>0,0,Q27-T39)) -> -760.9589041 | T38: Summe Kosten | U38: =IF($E$14=0,0,IF($V$30=0,0,IF($N$7="",V38/2.5,V38/$N$7))) -> 0 | V38: =IF(T14>0,0,IF(Kosten!AE22=0,0,Kosten!AE22)) -> 0 | DH38: ="Ø Futtertage:" -> Ø Futtertage: | DI38: =$Q$243 ->  | DK38: ="Ø Lebendgewicht:" -> Ø Lebendgewicht: | DL38: =IF($L$105=0,0,$M$105/$L$105) -> 0 | DM38: kg
C39: Futterverwertung: | E39: =IF($E$14=0,"",IF($E$15=0,"",IF(F28="","",($F28/Tiere_Zu_Abgang!$Y$38)*100))) -> 2.5 | G39: Ø Mfl / Indexpkt: | I39: =IF($E$14=0,"",IF($E$15=0,"",Tiere_Zu_Abgang!$O$38)) -> 0 | T39: =SUM(U30:U38) -> 170.9589041 | U39: =IF(E14=0,0,Q38/E14) -> -7.609589041 | DH39: tägl. Zunahmen: | DI39: =IF((($M$105+$N$116+$N$132)-$N$88)=0,0,(($M$105+$N$116+$N$132)-$N$88)/$Q$219*1000) -> 0 | DK39: ="Ø Schlachtgewicht:" -> Ø Schlachtgewicht: | DL39: =IF($L$105=0,0,$N$105/$L$105) -> 0 | DM39: kg
B40: By Heinr.-Bernh. Muenzebrock | C40: Futterkosten/Tier/Tag: | E40: =IF($E$14=0,"",IF($H$28="","",IF($E$37="","",($H$28/$E$14/$E$37)))) -> 0.3102902375 | G40: Ø Fleischmaß: | I40: =IF($E$14=0,"",IF($E$15=0,"",Tiere_Zu_Abgang!$M$38)) -> 0 | T40: =SUM(O30:O37) -> 1.709589041 | DH40: Futterverwertung: | DI40: =IF($AL$38=0,0,"1"&" "&":"&" "&ROUND($AL$38*100/(($M$105+$N$132+$N$116)-$N$88),2)) -> 0 | DK40: Verluste: | DL40: =IF($M$132=0,0,$M$132/$M$88*100) -> 0 | DM40: %
C41: Futter/Tier/Tag: | E41: =IF($E$14=0,"",IF($F$28="","",IF($E37="","",($F$28*100)/$E$14/$E$37))) -> 2.53298153 | G41: Ø Speckmaß: | I41: =IF($E$14=0,"",IF($E$15=0,"",Tiere_Zu_Abgang!$N$38)) -> 0 | M41: Mögl. Deckungsbeitrag / Platz: | O41: =IF(Q38=0,0,IF(T14>0,0,IF(N7="",Q38/W43*W42,Q38/W43*N7))) -> -26.70673077 | P41: je Jahr | V41: Masttage | W41: Ø Umtriebe: | DH41: Futter/Tier/Tag: | DI41: =IF($Q$219=0,0,$AL$38*100/$Q$219) -> 0 | DK41: Ausschlachtung: | DL41: =IF($N$105=0,0,$N$105/$M$105*100) -> 0 | DM41: %
C42: Futterkosten/Tier: | E42: =IF(E14=0,"",IF(G28="","",H28/E14)) -> 29.4 | G42: Verluste: | I42: =IF($E$14=0,"",$E$17/$E$14) -> 0.05 | M42: Mögl. Umtriebe je Jahr: | O42: =IF(T13>0,0,IF(T14>0,0,W42)) -> 3.509615385 | T42: Mögl. Umtriebe----> | V42: =IF(E14=0,0,E38+7) -> 104 | W42: =IF(E14=0,0,365/V42) -> 3.509615385 | DH42: Futterkosten/kg Zuwachs: | DI42: =IF($G$28=0,0,$G$28/($M$105+$N$116+$N$132-$N$88)) ->  | DK42: Magerfleischanteil: | DL42: =$M$221 -> 0 | DM42: %
C43: Futterkosten/kg Zuwachs: | E43: =IF($E$14=0,"",IF($E$15=0,"",IF(E42="","",$E$42/($I$36-$I$37)))) -> 0.3426993865 | G43: tägl. Zunahmen: | I43: =IF($E$14=0,"",IF($E$15=0,"",($F$15-$F$14)/$E$37*1000)) -> 905.4298014 | W43: =IF(N5="",E14,N5) -> 100
DH47: 3.: Deckungsbeitragsrechnung
DH49: 1.: Ertrag | DJ49: Gesamt | DL49: je verk. Mastschwein
DH51: Mastschweine: | DJ51: =$H$15 -> 13000 | DL51: =IF($G$51=0,0,$G$51/$E$15) -> 0
DH52: Notschlachtungen: | DJ52: =$H$16 -> 0 | DL52: =IF($G$52=0,0,$G$52/$E$15) -> 0
DH53: Gesamtertrag: | DJ53: =SUM($G$51:$G$52) -> 0 | DL53: =SUM($E$51:$E$52) -> 0
DH55: 2.: Aufwand
DH56: Ferkel: | DJ56: =$H$14 -> 10000 | DL56: =IF($G$56=0,0,$G$56/$E$15) -> 0
DH57: Futtermittel: | DJ57: =$G$28 -> 12.25 | DL57: =IF($G$57=0,0,$G$57/$E$15) -> 0
DH58: Heizung, Gas: | DJ58: =$AN$61 -> 0 | DL58: =IF($G$58=0,0,$G$58/$E$15) -> 0
DH59: Gesamtaufwand: | DJ59: =SUM($G$56:$G$58) -> 0 | DL59: =SUM($E$56:$E$58) -> 0
DH61: 3.: Deckungsbeitrag
DH62: ="=> Deckungsbeitrag 1:" -> => Deckungsbeitrag 1: | DJ62: =$G$53-$G$59 -> 0 | DL62: =$E$53-$E$59 -> 0
DH67: Pacht: | DJ67: =#REF! ->  | DL67: =IF($G$64=0,0,$G$64/$E$15) -> 0
DH68: Lohn: | DJ68: =$I$32 -> 0 | DL68: =IF($G$65=0,0,$G$65/$E$15) -> 0
DH69: ="=> Deckungsbeitrag 2:" -> => Deckungsbeitrag 2: | DJ69: =$G$62-$G$64-$G$65 -> 0 | DL69: =$E$62-$E$64-$E$65 -> 0
DH71: Deckungsbeitrag je Mastplatz: | DJ71: =IF($G$62=0,0,$G$62/$E$14) -> 0
DH72: Deckungsbeitrag je Mastplatz & Jahr | DJ72: =IF($G$62=0,0,$G$62/$E$14*365/($G$7-$G$6)) -> 0
DI75: Erfassungsbogen für die Betriebszweigabrechnung Schweinemast
DH77: Betrieb: | DI77: =C5 -> Name: | DK77: Stall: | DL77: =DJ5 -> 
DH79: Zukauf Ferkel:
DH80: Datum | DI80: Stück | DJ80: Gewicht | DK80: DM gesamt | DL80: Rasse | DM80: Händler
DH81: =DL6 ->  | DI81: =DI14 -> 0 | DJ81: =N88 -> 0 | DK81: =DL14 -> 0 | DL81: =DJ7 ->  | DM81: =DL5 -> 
DH83: Verkauf Mastschweine:
DH84: Datum | DI84: Stück | DJ84: Lebendgewicht | DK84: Schlachtgewicht | DL84: MFA | DM84: DM gesamt
DH85: =IF(J16417="","",J16417) ->  | DI85: =IF(L16417="","",L16417) ->  | DJ85: =IF(M16417="","",M16417) ->  | DK85: =IF(N16417="","",N16417) ->  | DL85: =IF(O16417="","",O16417) ->  | DM85: =IF(P16417="","",P16417) -> 
DH97: Notschlachtungen:
DH98: Datum | DI98: Stück | DJ98: Gewicht | DK98: DM gesamt
DH99: =IF(L111="","",L111) ->  | DI99: =IF(M111="","",M111) ->  | DJ99: =IF(N111="","",N111) ->  | DK99: =IF(O111="","",O111) -> 
DH100: =IF(L16435="","",L16435) -> 
DH105: Verluste:
DH106: Datum | DI106: Stück | DJ106: Gewicht
DH107: =IF(L122="","",L122) ->  | DI107: =IF(M122="","",M122) ->  | DJ107: =IF(N122="","",N122) -> 
DH108: =IF(L16446="","",L16446) ->  | DI108: =IF(M16446="","",M16446) ->  | DJ108: =IF(N16446="","",N16446) -> 
DH118: Spezialkosten:
DH119: Tierarzt, Medizin, Hygiene: | DI119: =DI31 -> 0 | DK119: Pacht: | DL119: =DL31 -> 0
DH121: Strom, Wasser, Geräte: | DI121: =DI32 -> $ae$ | DK121: Lohn: | DL121: =DL32 -> $ah$
DH123: Beiträge: | DI123: =DI33 -> 0 | DK123: Heizung, Gas: | DL123: =DL33 -> 0
DH125: Futtermittellieferungen:
DH126: Datum | DI126: Futterart | DK126: dt | DL126: DM gesamt | DM126: Firma
DH128: =IF(AK15="","",AK15) ->  | DI128: Starter | DJ128: =IF(AK3="","",AK3) ->  | DK128: =AL16 -> 0 | DL128: =AN16 -> 0 | DM128: =IF(AK3="","",AI4) -> 
DH130: =IF(AK21="","",AK21) ->  | DI130: Vormast | DJ130: =IF(AM3="","",AM3) ->  | DK130: =AL22 -> 0 | DL130: =AN22 -> 0 | DM130: =IF(AM3="","",AI4) -> 
DH132: =IF(AK29="","",AK29) ->  | DI132: Endmast I. | DJ132: =IF(AK5="","",AK5) ->  | DK132: =AL30 -> 0 | DL132: =AN30 -> 0 | DM132: =IF(AK5="","",AI4) -> 
DH134: =IF(AK34="","",AK34) ->  | DI134: Endmast II. | DJ134: =IF(AM5="","",AM5) ->  | DK134: =AL36 -> 0 | DL134: =AN36 -> 0 | DM134: =IF(AM5="","",AI4) -> 
O197: Einkauf Ferkel
O199: =IF(M85="",0,L85*M85) -> 0
O200: =IF(M86="",0,L86*M86) -> 0
O201: =IF(M87="",0,L87*M87) -> 0
O202: J12
J205: MFA | O205: Futtertage
J207: MFA | L207: Stück | M207: MFA*Stück | O207: Tage | P207: Stück | Q207: Tage*Stück
J208: =O16417 -> 0 | L208: =L16417 -> 0 | M208: =J208*L208 -> 0 | O208: =J94-$L$88 -> 0 | P208: =L16417 -> 0 | Q208: =O208*P208 -> 0
J209: 0 | L209: 0 | M209: 0 | O209: =J95-$L$88 -> 0 | P209: 0 | Q209: =O209*P209 -> 0
J210: 0 | L210: 0 | M210: 0 | O210: =J96-$L$88 -> 0 | P210: 0 | Q210: =O210*P210 -> 0
J211: 0 | L211: 0 | M211: 0 | O211: =J97-$L$88 -> 0 | P211: 0 | Q211: =O211*P211 -> 0
J212: 0 | L212: 0 | M212: 0 | P212: 0
J213: 0 | L213: 0 | M213: 0 | P213: 0
J214: 0 | L214: 0 | M214: 0 | P214: 0
J215: 0 | L215: 0 | M215: 0 | P215: 0
J216: 0 | L216: 0 | M216: 0 | P216: 0
J217: 0 | L217: 0 | M217: 0 | P217: 0
J218: 0 | L218: 0 | M218: 0 | P218: 0
L219: =SUM(L208:L218) -> 0 | M219: =SUM(M208:M218) -> 0 | Q219: =SUM(Q208:Q218) -> 0
M221: =IF(M219=0,0,M219/L219) -> 0
O222: =L111-$L$88 -> 0 | P222: =M111 -> 0 | Q222: =O222*P222 -> 0
O223: =L112-$L$88 -> 0 | P223: =M112 -> 0 | Q223: =O223*P223 -> 0
O224: =L113-$L$88 -> 0 | P224: =M113 -> 0 | Q224: =O224*P224 -> 0
O225: =L114-$L$88 -> 0 | P225: =M114 -> 0 | Q225: =O225*P225 -> 0
O226: =L115-$L$88 -> 0 | P226: =M115 -> 0 | Q226: =O226*P226 -> 0
Q227: =SUM(Q222:Q226) -> 0
O230: =L122-$L$88 -> 0 | P230: =M16445 -> 0 | Q230: =O230*P230 -> 0
O231: =L16446-$L$98 -> 0 | P231: 0 | Q231: 0
O232: 0 | P232: 0 | Q232: 0
O233: 0 | P233: 0 | Q233: 0
O234: 0 | P234: 0 | Q234: 0
O235: 0 | P235: 0 | Q235: 0
O236: 0 | P236: 0 | Q236: 0
O237: 0 | P237: 0 | Q237: 0
O238: 0 | P238: 0 | Q238: 0
O239: 0 | P239: 0 | Q239: 0
Q240: =SUM(Q230:Q239) -> 0
Q242: =Q219+Q227+Q240 -> 0
Q243: =(Q219/M85)-1 -> 

Sheet Tiere_Zu_Abgang
Q3: Strg+j=Eingaben löschen
I4: Auswertung Schweinemast / Erfassungsbogen Tiere | P4: Stall /
L5: =TODAY() -> 2020-09-01 | P5: Ställe/Partie Nr.: | Q5: =IF(Auswertung!N3="","",Auswertung!N3) -> 1
I6: Name: | J6: =IF(Auswertung!D5="","",Auswertung!D5) ->  | P6: Standort: | Q6: =IF(Auswertung!N4="","",Auswertung!N4) -> 
I7: Ort: | J7: =IF(Auswertung!D6="","",Auswertung!D6) ->  | P7: Stallplätze: | Q7: =IF(Auswertung!N5="","",Auswertung!N5) -> 
I8: Zusatz: | J8: =IF(Auswertung!D7="","",Auswertung!D7) ->  | P8: EK–Steuersatz: | Q8: 0.07
I9: Betriebs Nr.: | J9: =IF(Auswertung!D8="","",Auswertung!D8) ->  | P9: VK-Steuersatz: | Q9: 0.107
I11: Tierdaten: | K11: =IF(L16="","","Achtung: Bitte nur Nettopreise eingeben = ohne Steuer") -> Achtung: Bitte nur Nettopreise eingeben = ohne Steuer | DF11: Mastauswertung
L12: =IF(V83>0,"Achtung: Es fehlen Eingaben!!!","") -> 
I13: Zukauf Ferkel: | O13: =IF(Q8="","bitte Steuersatz für Ferkeleinkauf angeben","") ->  | DE13: =B13 -> 0 | DF13: Stall: | DG13: =IF($Q$5="","",$Q$5) -> 1 | DH13: Händler: | DI13: =IF($F$13="","",$F$13) -> 
M14: Euro/ Tier | S14: Gewicht/ | AB14: Stall/ | AC14: Bemerkungen: | DE14: =B14 -> 0 | DF14: Stallplätze: | DG14: =IF($Q$7="","",$Q$7) ->  | DH14: Einstalldatum: | DI14: =IF($U$11="","",$U$11) -> 
I15: Datum | J15: Stück | K15: Ges.Gewicht | L15: Euro Gesamt | N15: Rasse: | P15: Ohrmarken-Nr.: | Q15: Händler: | S15: Tier: | AB15: Ställe-Nr.: | DE15: =B15 -> 0 | DF15: Rasse: | DG15: =IF($U$16="","",$U$16) ->  | DH15: Ausstalldatum: | DI15: =IF($U$12="","",$U$12) -> 
I16: 2020-05-15 | J16: 100 | K16: 3000 | L16: 10000 | M16: =IF(J16="","",L16/J16) -> 100 | S16: =IF(J16="","",IF(K16="","",K16/J16)) -> 30 | T16: =IF(J16="","",IF(I16="","",I16)*J16) -> 4396600 | Z16: =IF(I16="","",I16) -> 43966
M17: =IF(J17="","",L17/J17) ->  | S17: =IF(J17="","",IF(K17="","",K17/J17)) ->  | T17: =IF(J17="","",IF(I17="","",I17)*J17) ->  | DE17: 1.: Erfassung
M18: =IF(J18="","",L18/J18) ->  | S18: =IF(J18="","",IF(K18="","",K18/J18)) ->  | T18: =IF(J18="","",IF(I18="","",I18)*J18) -> 
M19: =IF(J19="","",L19/J19) ->  | S19: =IF(J19="","",IF(K19="","",K19/J19)) ->  | T19: =IF(J19="","",IF(I19="","",I19)*J19) -> 
M20: =IF(J20="","",L20/J20) ->  | S20: =IF(J20="","",IF(K20="","",K20/J20)) ->  | T20: =IF(J20="","",IF(I20="","",I20)*J20) ->  | DE20: Tierdaten: | DF20: Stück | DG20: kg/Stück | DH20: DM/Stück | DI20: DM gesamt | DJ20: DM/kg
I21: Gesamt: | J21: =SUM(J16:J20) -> 100 | K21: =SUM(K16:K20) -> 3000 | L21: =SUM(L16:L20) -> 10000 | M21: =IF(J21=0,0,L21/J21) -> 100 | R21: Ø kg/Tier: | S21: =IF(J21=0,0,K21/J21) -> 30 | T21: =SUM(T16:T20) -> 4396600 | U21: =IF(J21=0,"",(T21/J21)) -> 2020-05-15 | V21: <----Gesamt EK Datum | X21: =IF(Auswertung!N8="J",(L21*Q8)+L21,L21) -> 10000
DE22: Zukauf Ferkel: | DF22: =$J$20 -> 0 | DG22: =IF($C$22=0,0,$K$20/$J$20) -> 0 | DH22: =$N$20 -> 0 | DI22: =$L$20 -> 0 | DJ22: =IF($L$20=0,0,$L$20/$K$20) -> 0
I23: Verkauf Mastschweine: | L23: Gesamt | O23: =IF(Q9="","bitte Steuersatz für Mastschweineverkauf angeben","") ->  | DE23: Verkauf Mastschweine: | DF23: =$J$39 -> 0 | DG23: =IF($C$23=0,0,$R$38/$J$39) -> 0 | DH23: =IF($O$39=0,0,$O$39/$J$39) -> 0 | DI23: =$O$39 -> 0 | DJ23: =IF($O$39=0,0,$O$39/$R$38) -> 0
K24: Lebend-gewicht | L24: Schlacht-gewicht | M24: Fleisch Maß | N24: Speck Maß | O24: MFA/ Index | R24: Basispreis | S24: erzielter | AB24: Ø Lebend | AC24: Ø Schlacht | AD24: Ausschla- | AE24: aus Stall Nr.: | AF24: Mess-methode | AG24: Händler o. | DE24: Notschlachtungen: | DF24: =$J$48 -> 0 | DG24: =IF($C$24=0,0,$K$48/$J$48) -> 0 | DH24: =IF($L$48=0,0,$L$48/$J$48) -> 0 | DI24: =$L$48 -> 0 | DJ24: =IF($L$48=0,0,$L$48/$K$48) -> 0
I25: Datum | J25: Stück | P25: Euro Gesamt | Q25: Euro/Tier | R25: bei Ablief. | S25: Preis/kg | T25: Gesamt VK | U25: Ges. MFA | AB25: gewicht | AC25: gewicht | AD25: chtung | AG25: Schlachthof | DE25: Verluste: | DF25: =$J$83 -> 5 | DG25: =IF($C$25=0,0,$K$83/$J$83) -> 0
I26: 2020-08-20 | J26: 95 | K26: 11000 | L26: 9000 | P26: 13000 | Q26: =IF(J26="","",IF(P26="","",P26/J26)) -> 136.8421053 | S26: =IF(J26="","",IF(P26="","",Q26/(L26/J26)+J26*5/L26)) -> 1.497222222 | T26: =IF(I26="",0,(I26*J26)) -> 4185985 | U26: =IF(I26="",0,(J26*O26)) -> 0 | V26: =IF(J26="",0,(J26*R26)) -> 0 | W26: =IF(J26="",0,IF(S26="",0,(J26*S26))) -> 142.2361111 | X26: =J26*M26 -> 0 | Y26: =J26*N26 -> 0 | Z26: =IF(I27<>"","",IF(I26="","",I26)) -> 44063 | AA26: =IF(I26<>"",0,IF(J26<>"",1,0)) -> 0 | AB26: =IF(J26="","",IF(K26="","",K26/J26)) -> 115.7894737 | AC26: =IF(J26="","",IF(L26="","",L26/J26)) -> 94.73684211 | AD26: =IF(J26="","",IF(L26="","",L26/K26)) -> 0.8181818182 | AE26: 1
T27: 0 | U27: 0 | V27: 0 | W27: 0 | X27: 0 | Y27: 0 | AA27: 0 | DE27: Futteraufwand: | DG27: dt | DH27: DM/dt | DI27: DM gesamt
T28: 0 | U28: 0 | V28: 0 | W28: 0 | X28: 0 | Y28: 0 | AA28: 0 | DE28: Futterverbrauch Starter: | DG28: =$AO$24 -> 0 | DH28: =$AP$24 -> 0 | DI28: =$AQ$24 -> 0
T29: 0 | U29: 0 | V29: 0 | W29: 0 | X29: 0 | Y29: 0 | AA29: 0 | DE29: Futterverbrauch Vormast: | DG29: =$AO$29 -> 0 | DH29: =$AP$29 -> 0 | DI29: =$AQ$29 -> 0
T30: 0 | U30: 0 | V30: 0 | W30: 0 | X30: 0 | Y30: 0 | AA30: 0 | DE30: Futterverbrauch Endmast I.: | DG30: =$AO$34 -> 0 | DH30: =$AP$34 -> 0 | DI30: =$AQ$34 -> 0
T31: 0 | U31: 0 | V31: 0 | W31: 0 | X31: 0 | Y31: 0 | AA31: 0 | DE31: Futterverbrauch Endmast II.: | DG31: =$AO$40 -> 0 | DH31: =$AP$40 -> 0 | DI31: =$AQ$40 -> 0
T32: 0 | U32: 0 | V32: 0 | W32: 0 | X32: 0 | Y32: 0 | AA32: 0 | DE32: Futterverbrauch gesamt: | DG32: =$AO$42 -> 0 | DH32: =$AP$42 -> 0 | DI32: =$AQ$42 -> 0
T33: 0 | U33: 0 | V33: 0 | W33: 0 | X33: 0 | Y33: 0 | AA33: 0
T34: 0 | U34: 0 | V34: 0 | W34: 0 | X34: 0 | Y34: 0 | AA34: 0 | DE34: Sonstige Spezialkosten:
T35: 0 | U35: 0 | V35: 0 | W35: 0 | X35: 0 | Y35: 0 | AA35: 0 | DE35: Tierarzt, Medikamente, Hygiene: | DF35: =$AN$53 -> 0 | DH35: Pacht: | DI35: =$AQ$53 -> 0
T36: 0 | U36: 0 | V36: 0 | W36: 0 | X36: 0 | Y36: 0 | AA36: 0 | DE36: Strom, Wasser, Geräte: | DF36: =$AN$59 -> 0 | DH36: Lohn: | DI36: =$AQ$59 -> 0
T37: 0 | U37: 0 | V37: 0 | W37: 0 | X37: 0 | Y37: 0 | Z37: =IF(I37="","",I37) ->  | AA37: Ausschlachtung | DE37: Beiträge (Tierseuchenkasse): | DF37: =$AN$65 -> 0 | DH37: Heizung, Gas: | DI37: =$AQ$65 -> 0
I38: Gesamt: | J38: =SUM(J26:J37) -> 95 | K38: =SUM(K26:K37) -> 11000 | L38: =SUM(L26:L37) -> 9000 | M38: =IF(J38=0,0,SUM(X26:X37)/J38) -> 0 | N38: =IF(J38=0,0,SUM(Y26:Y37)/J38) -> 0 | O38: =IF(U38<0.5,0,U38) -> 0 | P38: =SUM(P26:P37) -> 13000 | Q38: =IF(Auswertung!E37<>"","",IF(J38=0,0,P38/J38)) ->  | R38: =V38 -> 0 | S38: =W38 -> 1.497222222 | T38: =IF(J38=0,0,SUM(T26:T37)+T48+T83) -> 4406275 | U38: =IF(J38=0,0,SUM(U26:U37)/J38) -> 0 | V38: =IF(J38=0,0,SUM(V26:V37)/J38) -> 0 | W38: =IF(J38=0,0,SUM(W26:W37)/J38) -> 1.497222222 | X38: =IF(Auswertung!N8="J",(P38*Q9)+P38,P38) -> 13000 | Y38: =IF(K38=0,0,IF(S21=0,0,SUM(K38-(J38*S21)+(K48-(J48*S21)+(K83-(J83*S21)+((AF38*120)-(AF38*S21))))))) -> 9600 | Z38: =IF(J38=0,"",SUM(Z26:Z37)) -> 2020-08-20 | AA38: =IF(J38=0,0,(L38/K38)*100) -> 81.81818182 | AB38: =IF(J38=0,0,K38/J38) -> 115.7894737 | AC38: =IF(J38=0,0,L38/J38) -> 94.73684211 | AD38: =AA38 -> 81.81818182 | AF38: =Bestandsregister!N5 -> 0 | AG38: Tiere im Bestand
T39: =IF(J38=0,"",(T38/(J38+J48+J83))) -> 2020-08-19T18:00:00 | U39: <---Gesamt VK Datum | Y39: =IF(K38=0,0,(K38+K48+K83)/(J38+J48+J83)) -> 126 | Z39: =IF(Z38="",0,IF(Z48>Z38,Z48-Z16,Z38-Z16)) -> 97 | AA39: =SUM(AA26:AA36) -> 0
I40: Notschlachtungen: | X40: Brutto Preis | Y40: Gesamt-Zunahme: | DE40: 2.: Mastverlauf
K41: Gesamt-gewicht | L41: Euro Gesamt
I42: Datum | J42: Stück | M42: Euro/Tier | N42: Notschlachter | DE42: ="Ø Futtertage:" -> Ø Futtertage: | DF42: =$Q$261 -> 0 | DH42: ="Ø Lebendgewicht:" -> Ø Lebendgewicht: | DI42: =IF($J$39=0,0,$R$38/$J$39) -> 0 | DJ42: kg
T43: =IF(I43="",0,(I43*J43)) -> 0 | Z43: =IF(I44<>"","",IF(I43="","",I43)) ->  | AA43: =IF(I43<>"",0,IF(J43<>"",1,0)) -> 0 | DE43: tägl. Zunahmen: | DF43: =IF((($R$38+$K$48+$K$83)-$K$20)=0,0,(($R$38+$K$48+$K$83)-$K$20)/$Q$237*1000) ->  | DH43: ="Ø Schlachtgewicht:" -> Ø Schlachtgewicht: | DI43: =IF($J$39=0,0,$P$39/$J$39) -> 0 | DJ43: kg
T44: =IF(I44="",0,(I44*J44)) -> 0 | Z44: =IF(I45<>"","",IF(I44="","",I44)) ->  | AA44: =IF(I44<>"",0,IF(J44<>"",1,0)) -> 0 | DE44: Futterverwertung: | DF44: =IF($AO$42=0,0,"1"&" "&":"&" "&ROUND($AO$42*100/(($R$38+$K$83+$K$48)-$K$20),2)) -> 0 | DH44: Verluste: | DI44: =IF($J$83=0,0,$J$83/$J$20*100) ->  | DJ44: %
T45: =IF(I45="",0,(I45*J45)) -> 0 | Z45: =IF(I46<>"","",IF(I45="","",I45)) ->  | AA45: =IF(I45<>"",0,IF(J45<>"",1,0)) -> 0 | DE45: Futter/Tier/Tag: | DF45: =IF($Q$237=0,0,$AO$42*100/$Q$237) -> 0 | DH45: Ausschlachtung: | DI45: =IF($P$39=0,0,$P$39/$R$38*100) -> 0 | DJ45: %
T46: =IF(I46="",0,(I46*J46)) -> 0 | U46: Gesamt Stck. | V46: Ø kg/Tier: | W46: Gesamt-Euro | Y46: Brutto Preis | Z46: =IF(I47<>"","",IF(I46="","",I46)) ->  | AA46: =IF(I46<>"",0,IF(J46<>"",1,0)) -> 0 | DE46: Futterkosten/kg Zuwachs: | DF46: =IF($F$32=0,0,$F$32/($R$38+$K$48+$K$83-$K$20)) -> 0 | DH46: Magerfleischanteil: | DI46: =$K$239 -> 0 | DJ46: %
T47: =IF(I47="",0,(I47*J47)) -> 0 | U47: =SUM(J43:J47) -> 0 | V47: =IF(U47=0,0,SUM(K43:K47)/U47) -> 0 | W47: =SUM(L43:L47) -> 0 | Y47: =IF(Auswertung!N8="J",(W47*Q9)+W47,W47) -> 0 | Z47: =IF(I47="","",I47) ->  | AA47: =IF(I47<>"",0,IF(J47<>"",1,0)) -> 0
I48: Gesamt: | J48: =SUM(J43:J47) -> 0 | K48: =SUM(K43:K47) -> 0 | L48: =SUM(L43:L47) -> 0 | M48: =IF(L48=0,"",IF(J48=0,"",L48/J48)) ->  | T48: =SUM(T43:T47) -> 0 | Z48: =SUM(Z43:Z47) -> 0 | AA48: =SUM(AA43:AA47) -> 0 | DE48: 3.: Deckungsbeitragsrechnung
I50: Verluste:
K51: Gesamt-gewicht | L51: Verlust-ursache | M51: aus Stall Nr. | DE51: 1.: Ertrag | DG51: Gesamt | DI51: je verk. Mastschwein
I52: Datum | J52: Stück | N52: Abnehmer | DE52: Mastschweine: | DG52: =$F$23 -> 0 | DI52: =IF($D$52=0,0,$D$52/$C$23) -> 0
H53: By Heinrich-Bernhard Münzebrock Version 2019 | I53: 2020-08-15 | J53: 5 | K53: 1600 | T53: =IF(I53="",0,(I53*J53)) -> 220290 | V53: =IF(I53<>"",0,IF(J53<>"",1,0)) -> 0 | DE53: Notschlachtungen: | DG53: =$F$24 -> 0 | DI53: =IF($D$53=0,0,$D$53/$C$23) -> 0
T54: 0 | V54: =IF(I54="",IF(J54<>"",1,0)) -> 0 | DE54: Gesamtertrag: | DG54: =SUM($D$52:$D$53) -> 0 | DI54: =SUM($F$52:$F$53) -> 0
T55: 0 | V55: 0
T56: 0 | V56: 0 | DE56: 2.: Aufwand
T57: 0 | V57: 0 | DE57: Ferkel: | DG57: =$F$22 -> 0 | DI57: =IF($D$57=0,0,$D$57/$C$23) -> 0
T58: 0 | V58: 0 | DE58: Futtermittel: | DG58: =$F$32 -> 0 | DI58: =IF($D$58=0,0,$D$58/$C$23) -> 0
T59: 0 | V59: 0 | DE59: Tierarzt, Medizin, Hygiene: | DG59: =$C$35 -> 0 | DI59: =IF($D$59=0,0,$D$59/$C$23) -> 0
T60: 0 | V60: 0 | DE60: Strom, Wasser, Geräte: | DG60: =$C$36 -> 0 | DI60: =IF($D$60=0,0,$D$60/$C$23) -> 0
T61: 0 | V61: 0 | DE61: Beiträge (Tierseuchenkasse): | DG61: =$C$37 -> 0 | DI61: =IF($D$61=0,0,$D$61/$C$23) -> 0
T62: 0 | V62: 0 | DE62: Heizung, Gas: | DG62: =$AQ$65 -> 0 | DI62: =IF($D$62=0,0,$D$62/$C$23) -> 0
T63: 0 | V63: 0 | DE63: Gesamtaufwand: | DG63: =SUM($D$57:$D$62) -> 0 | DI63: =SUM($F$57:$F$62) -> 0
T64: 0 | V64: 0
T65: 0 | V65: 0 | DE65: 3.: Deckungsbeitrag
T66: 0 | V66: 0
T67: 0 | V67: 0
T68: 0 | V68: 0
T69: 0 | V69: 0
T70: 0 | V70: 0
T71: 0 | V71: 0
T72: 0 | V72: 0
T73: 0 | V73: 0
T74: 0 | V74: 0
T75: 0 | V75: 0
T76: 0 | V76: 0
T77: 0 | V77: 0
T78: 0
T79: 0
T80: 0
T81: 0
T82: 0 | U82: Ø kg/Tier:
I83: Gesamt: | J83: =SUM(J53:J82) -> 5 | K83: =SUM(K53:K82) -> 1600 | T83: =SUM(T53:T82) -> 220290 | U83: =IF(K83=0,0,K83/J83) -> 320 | V83: =SUM(V53:V77)+Y21+AA39+AA48 -> 0 | DE83: ="=> Deckungsbeitrag 1:" -> => Deckungsbeitrag 1: | DG83: =$D$54-$D$63 -> 0 | DI83: =$F$54-$F$63 -> 0
DE85: Pacht: | DG85: =$F$35 -> 0 | DI85: =IF($D$85=0,0,$D$85/$C$23) -> 0
DE86: Lohn: | DG86: =$F$36 -> 0 | DI86: =IF($D$86=0,0,$D$86/$C$23) -> 0
DE87: ="=> Deckungsbeitrag 2:" -> => Deckungsbeitrag 2: | DG87: =$D$83-$D$85-$D$86 -> 0 | DI87: =$F$83-$F$85-$F$86 -> 0
DE89: Deckungsbeitrag je Mastplatz: | DG89: =IF($D$83=0,0,$D$83/$C$22) -> 0
DE90: Deckungsbeitrag je Mastplatz & Jahr | DG90: =IF($D$83=0,0,$D$83/$C$22*365/($F$15-$F$14)) -> 0
S93: =IF(R98="",R97,IF(R98=0,R97,IF(R98>R97,R98,R97))) -> 2020-08-20 | DF93: Erfassungsbogen für die Betriebszweigabrechnung Schweinemast
S94: =IF(R99>R98,R99,R98) -> 00:00:00
S95: 00:00:00 | DE95: Betrieb: | DF95: =B13 -> 0 | DH95: Stall: | DI95: =DG13 -> 1
S96: 00:00:00
I97: =I26 -> 2020-08-20 | K97: =IF(I98>I97,I98,I97) -> 2020-08-20 | L97: =IF(K98="",K97,IF(K98=0,K97,IF(K98>K97,K98,K97))) -> 2020-08-20 | O97: =IF(L98="",L97,IF(L98=0,L97,IF(L98>L97,L98,L97))) -> 2020-08-20 | P97: =IF(O98="",O97,IF(O98=0,O97,IF(O98>O97,O98,O97))) -> 2020-08-20 | Q97: =IF(P98="",P97,IF(P98=0,P97,IF(P98>P97,P98,P97))) -> 2020-08-20 | R97: =IF(Q98="",Q97,IF(Q98=0,Q97,IF(Q98>Q97,Q98,Q97))) -> 2020-08-20 | S97: 00:00:00 | T97: =IF(S94="",S93,IF(S94=0,S93,IF(S94>S93,S94,S93))) -> 2020-08-20 | U97: =IF(T98="",T97,IF(T98=0,T97,IF(T98>T97,T98,T97))) -> 2020-08-20 | V97: =IF(U98="",U97,IF(U98=0,U97,IF(U98>U97,U98,U97))) -> 2020-08-20 | W97: =IF(V98="",V97,IF(V98=0,V97,IF(V98>V97,V98,V97))) -> 2020-08-20 | X97: =IF(W98="",W97,IF(W98=0,W97,IF(W98>W97,W98,W97))) -> 2020-08-20 | Y97: =IF(X98="",X97,IF(X98=0,X97,IF(X98>X97,X98,X97))) -> 2020-08-20 | DE97: Zukauf Ferkel:
I98: 00:00:00 | K98: 00:00:00 | L98: =IF(K99>K98,K99,K98) -> 00:00:00 | O98: =IF(L99>L98,L99,L98) -> 00:00:00 | P98: =IF(O99>O98,O99,O98) -> 00:00:00 | Q98: 00:00:00 | R98: 00:00:00 | S98: 00:00:00 | T98: =IF(S95>S94,S95,S94) -> 00:00:00 | U98: =IF(T99>T98,T99,T98) -> 00:00:00 | V98: 00:00:00 | W98: 00:00:00 | X98: 00:00:00 | Y98: 00:00:00 | DE98: Datum | DF98: Stück | DG98: Gewicht | DH98: DM gesamt | DI98: Rasse | DJ98: Händler
I99: 00:00:00 | K99: 00:00:00 | L99: 00:00:00 | O99: 00:00:00 | P99: 00:00:00 | Q99: 00:00:00 | R99: 00:00:00 | S99: 00:00:00 | T99: 00:00:00 | U99: 00:00:00 | V99: 00:00:00 | W99: 00:00:00 | X99: 00:00:00 | Y99: 00:00:00 | DE99: =DI14 ->  | DF99: =DF22 -> 0 | DG99: =K20 -> 0 | DH99: =DI22 -> 0 | DI99: =DG15 ->  | DJ99: =DI13 -> 
I100: 00:00:00 | K100: 00:00:00 | L100: 00:00:00 | O100: 00:00:00 | P100: 00:00:00 | Q100: 00:00:00 | R100: 00:00:00 | S100: 00:00:00 | T100: 00:00:00 | U100: 00:00:00 | V100: 00:00:00 | W100: 00:00:00 | X100: 00:00:00 | Y100: 00:00:00
I101: 00:00:00 | K101: 00:00:00 | L101: 00:00:00 | O101: 00:00:00 | P101: 00:00:00 | Q101: 00:00:00 | R101: 00:00:00 | S101: 00:00:00 | T101: 00:00:00 | U101: 00:00:00 | V101: 00:00:00 | W101: 00:00:00 | X101: 00:00:00 | Y101: 00:00:00 | DE101: Verkauf Mastschweine:
I102: 00:00:00 | K102: 00:00:00 | L102: 00:00:00 | O102: 00:00:00 | P102: 00:00:00 | Q102: 00:00:00 | R102: 00:00:00 | S102: 00:00:00 | T102: 00:00:00 | U102: 00:00:00 | V102: 00:00:00 | W102: 00:00:00 | X102: 00:00:00 | Y102: 00:00:00 | DE102: Datum | DF102: Stück | DG102: Lebendgewicht | DH102: Schlachtgewicht | DI102: MFA | DJ102: DM gesamt
I103: 00:00:00 | K103: 00:00:00 | L103: 00:00:00 | O103: 00:00:00 | P103: 00:00:00 | Q103: 00:00:00 | R103: 00:00:00 | S103: 00:00:00 | T103: 00:00:00 | U103: 00:00:00 | V103: 00:00:00 | W103: 00:00:00 | X103: 00:00:00 | Y103: 00:00:00 | DE103: =IF(I16435="","",I16435) ->  | DF103: =IF(J16435="","",J16435) ->  | DG103: =IF(K16435="","",K16435) ->  | DH103: =IF(L16435="","",L16435) ->  | DI103: =IF(O16435="","",O16435) ->  | DJ103: =IF(P16435="","",P16435) -> 
I104: 00:00:00 | K104: 00:00:00 | L104: 00:00:00 | O104: 00:00:00 | P104: 00:00:00 | Q104: 00:00:00 | R104: 00:00:00 | S104: 00:00:00 | T104: 00:00:00 | U104: 00:00:00 | V104: 00:00:00 | W104: 00:00:00 | X104: 00:00:00 | Y104: 00:00:00
I105: 00:00:00 | K105: 00:00:00 | L105: 00:00:00 | O105: 00:00:00 | P105: 00:00:00 | Q105: 00:00:00 | R105: 00:00:00 | T105: 00:00:00 | U105: 00:00:00 | V105: 00:00:00 | W105: 00:00:00 | X105: 00:00:00 | Y105: 00:00:00
I106: 00:00:00 | K106: 00:00:00 | L106: 00:00:00 | O106: 00:00:00 | P106: 00:00:00 | Q106: 00:00:00 | R106: 00:00:00 | T106: 00:00:00 | U106: 00:00:00 | V106: 00:00:00 | W106: 00:00:00 | X106: 00:00:00 | Y106: 00:00:00
I107: 00:00:00 | K107: 00:00:00 | L107: 00:00:00 | O107: 00:00:00 | P107: 00:00:00 | Q107: 00:00:00 | R107: 00:00:00 | T107: 00:00:00 | U107: 00:00:00 | V107: 00:00:00 | W107: 00:00:00 | X107: 00:00:00 | Y107: 00:00:00
I108: 00:00:00 | K108: 00:00:00 | L108: 00:00:00 | O108: 00:00:00 | P108: 00:00:00 | Q108: 00:00:00 | R108: 00:00:00 | T108: 00:00:00 | U108: 00:00:00 | V108: 00:00:00 | W108: 00:00:00 | X108: 00:00:00 | Y108: 00:00:00
DE115: Notschlachtungen:
DE116: Datum | DF116: Stück | DG116: Gewicht | DH116: DM gesamt
DE117: =IF(I43="","",I43) ->  | DF117: =IF(J43="","",J43) ->  | DG117: =IF(K43="","",K43) ->  | DH117: =IF(L43="","",L43) -> 
DE118: =IF(J16453="","",J16453) ->  | DH118: =IF(O16453="","",O16453) -> 
DH119: =IF(O16454="","",O16454) -> 
DH120: =IF(O16455="","",O16455) -> 
DH121: =IF(O16456="","",O16456) -> 
DE123: Verluste:
DE124: Datum | DF124: Stück | DG124: Gewicht
DE125: =IF(I53="","",I53) -> 2020-08-15 | DF125: =IF(J53="","",J53) -> 5 | DG125: =IF(K53="","",K53) -> 1600
DE126: =IF(J16464="","",J16464) ->  | DF126: =IF(K16464="","",K16464) ->  | DG126: =IF(L16464="","",L16464) -> 
DE136: Spezialkosten:
DE137: Tierarzt, Medizin, Hygiene: | DF137: =DF35 -> 0 | DH137: Pacht: | DI137: =DI35 -> 0
DE139: Strom, Wasser, Geräte: | DF139: =DF36 -> 0 | DH139: Lohn: | DI139: =DI36 -> 0
DE141: Beiträge: | DF141: =DF37 -> 0 | DH141: Heizung, Gas: | DI141: =DI37 -> 0
DE143: Futtermittellieferungen:
DE144: Datum | DF144: Futterart | DH144: dt | DI144: DM gesamt | DJ144: Firma
DE146: =IF(AN23="","",AN23) ->  | DF146: Starter | DG146: =IF(AN11="","",AN11) ->  | DH146: =AO24 -> 0 | DI146: =AQ24 -> 0 | DJ146: =IF(AN11="","",AL12) -> 
DE148: =IF(AN28="","",AN28) ->  | DF148: Vormast | DG148: =IF(AP11="","",AP11) ->  | DH148: =AO29 -> 0 | DI148: =AQ29 -> 0 | DJ148: =IF(AP11="","",AL12) -> 
DE150: =IF(AN33="","",AN33) ->  | DF150: Endmast I. | DG150: =IF(AN13="","",AN13) ->  | DH150: =AO34 -> 0 | DI150: =AQ34 -> 0 | DJ150: =IF(AN13="","",AL12) -> 
DE152: =IF(AN39="","",AN39) ->  | DF152: Endmast II. | DG152: =IF(AP13="","",AP13) ->  | DH152: =AO40 -> 0 | DI152: =AQ40 -> 0 | DJ152: =IF(AP13="","",AL12) -> 

Sheet Futter
C3: Auswertung Schweinemast / Erfassungsbogen Futter | M3: Name: | N3: =Tiere_Zu_Abgang!J6 ->  | S3: Strg+k=Eingaben löschen
J4: =TODAY() -> 2020-09-01 | M4: Stall/Ställe/Partie Nr.: | O4: =Tiere_Zu_Abgang!Q5 -> 1
C5: Lieferant: | D5: Futtermittelfirma | M5: Silo Nr.: | O5: 13 | S5: Blatt 1
H6: =IF(O6=""," Bitte EK - Steuersatz angeben!!! --->","") ->  | M6: EK – Steuersatz: | O6: 0.07
C7: * = Bitte nur angeben, wenn der Preis für den gesamten Durchgang gültig ist! - hierbei entfällt die Eingabe des Gesampreises!. | AJ7: =D45 -> 180 | AK7: =I45 -> 5 | AL7: =N45 -> 6 | AM7: =S45 -> 7 | AN7: =D91 -> 8 | AO7: =I91 -> 9 | AP7: =N91 -> 25 | AQ7: =S91 -> 0 | AR7: =D136 -> 0 | AS7: =I136 -> 0 | AT7: =N136 -> 0 | AU7: =S136 -> 0
C8: Futtersorte | D8: Vormast | H8: Futtersorte | I8: Mittelmast | M8: Futtersorte | N8: Endmast I | R8: Futtersorte | S8: Endmast II | AJ8: =IF($I$8=$D$8,$I$45,0) -> 0 | AK8: =IF($N$8=$I$8,$N$45,0) -> 0 | AL8: =IF($S$8=$N$8,$S$45,0) -> 0 | AM8: =IF($D$54=$S$8,$D$91,0) -> 0 | AN8: =IF($I$54=$D$54,$I$91,0) -> 0 | AO8: =IF($N$54=$I$54,$N$91,0) -> 0 | AP8: =IF($S$54=$N$54,$S$91,0) -> 0 | AQ8: =IF($D$99=$S$54,$D$136,0) -> 0 | AR8: =IF($I$99=$D$99,$I$136,0) -> 0 | AS8: =IF($N$99=$I$99,$N$136,0) -> 0 | AT8: =IF($S$99=$N$99,$S$136,0) -> 0
C9: *Kontraktpreis?/dt: | H9: *Kontraktpreis?/dt: | M9: *Kontraktpreis?/dt: | R9: *Kontraktpreis?/dt: | AJ9: =IF($N$8=$D$8,$N$45,0) -> 0 | AK9: =IF($S$8=$I$8,$S$45,0) -> 0 | AL9: =IF($D$54=$N$8,$D$91,0) -> 0 | AM9: =IF($I$54=$S$8,$I$91,0) -> 0 | AN9: =IF($N$54=$D$54,$N$91,0) -> 0 | AO9: =IF($S$54=$I$54,$S$91,0) -> 0 | AP9: =IF($D$99=$N$54,$D$136,0) -> 0 | AQ9: =IF($I$99=$S$54,$I$136,0) -> 0 | AR9: =IF($N$99=$D$99,$N$136,0) -> 0 | AS9: =IF($S$99=$I$99,$S$136,0) -> 0
C10: Achtung: bitte Nettopreise eingeben = o Steuer | H10: =IF(J12="","","Achtung: bitte Nettopreise eingeben = o Steuer") -> Achtung: bitte Nettopreise eingeben = o Steuer | M10: =IF(O12="","","Achtung: bitte Nettopreise eingeben = o Steuer") -> Achtung: bitte Nettopreise eingeben = o Steuer | R10: =IF(T12="","","Achtung: bitte Nettopreise eingeben = o Steuer") -> Achtung: bitte Nettopreise eingeben = o Steuer | AJ10: =IF($S$8=$D$8,$S$45,0) -> 0 | AK10: =IF($D$54=$I$8,$D$91,0) -> 0 | AL10: =IF($I$54=$N$8,$I$91,0) -> 0 | AM10: =IF($N$54=$S$8,$N$91,0) -> 0 | AN10: =IF($S$54=$D$54,$S$91,0) -> 0 | AO10: =IF($D$99=$I$54,$D$136,0) -> 0 | AP10: =IF($I$99=$N$54,$I$136,0) -> 0 | AQ10: =IF($N$99=$S$54,$N$136,0) -> 0 | AR10: =IF($S$99=$D$99,$S$136,0) -> 0
C11: Lieferdatum | D11: Menge/dt | E11: Gesamtpreis | H11: Lieferdatum | I11: Menge/dt | J11: Gesamtpreis | M11: Lieferdatum | N11: Menge/dt | O11: Gesamtpreis | R11: Lieferdatum | S11: Menge/dt | T11: Gesamtpreis | AJ11: =IF($D$54=$D$8,$D$91,0) -> 0 | AK11: =IF($I$54=$I$8,$I$91,0) -> 0 | AL11: =IF($N$54=$N$8,$N$91,0) -> 0 | AM11: =IF($S$54=$S$8,$S$91,0) -> 0 | AN11: =IF($D$99=$D$54,$D$136,0) -> 0 | AO11: =IF($I$99=$I$54,$I$136,0) -> 0 | AP11: =IF($N$99=$N$54,$N$136,0) -> 0 | AQ11: =IF($S$99=$S$54,$S$136,0) -> 0
D12: 180 | E12: 1500 | I12: 5 | J12: 150 | N12: 6 | O12: 90 | S12: 7 | T12: 150 | X12: =IF($D$8="","",$D$8) -> Vormast | Y12: =IF($I$8="","",IF($I$8=$D$8,"",$I$8)) -> Mittelmast | Z12: =IF($N$8="","",IF($N$8=$D$8,"",IF(N8=I8,"",$N$8))) -> Endmast I | AA12: =IF($S$8="","",IF($S$8=$D$8,"",IF(S8=I8,"",IF(S8=N8,"",$S$8)))) -> Endmast II | AB12: =IF($D$54="","",IF($D$54=$D$8,"",IF($D$54=$I$8,"",IF($D$54=$N$8,"",IF($D$54=$S$8,"",$D$54))))) -> ddd | AC12: =IF($I$54="","",IF($I$54=$D$8,"",IF($I$54=$I$8,"",IF($I$54=$N$8,"",IF($I$54=$S$8,"",IF($I$54=$D$54,"",$I$54)))))) -> dddd | AD12: =IF($N$54="","",IF($N$54=$D$8,"",IF($N$54=$I$8,"",IF($N$54=$N$8,"",IF($N$54=$S$8,"",IF($N$54=$D$54,"",IF($N$54=$I$54,"",$N$54))))))) -> erer | AE12: =IF($S$54="","",IF($S$54=$D$8,"",IF($S$54=$I$8,"",IF($S$54=$N$8,"",IF($S$54=$S$8,"",IF($S$54=$D$54,"",IF($S$54=$I$54,"",IF($S$54=$N$54,"",$S$54)))))))) ->  | AF12: =IF($D$99="","",IF($D$99=$I$8,"",IF($D$99=$N$8,"",IF($D$99=$S$8,"",IF($D$99=$D$54,"",IF($D$99=$I$54,"",IF($D$99=$N$54,"",IF($D$99=$S$54,"",$D$99)))))))) ->  | AG12: =IF($I$99="","",IF($I$99=$N$8,"",IF($I$99=$S$8,"",IF($I$99=$D$54,"",IF($I$99=$I$54,"",IF($I$99=$N$54,"",IF($I$99=$S$54,"",IF($I$99=$D$99,"",$I$99)))))))) ->  | AH12: =IF($N$99="","",IF($N$99=$S$8,"",IF($N$99=$D$54,"",IF($N$99=$I$54,"",IF($N$99=$N$54,"",IF($N$99=$S$54,"",IF($N$99=$D$99,"",IF($N$99=$I$99,"",$N$99)))))))) ->  | AI12: =IF($S$99="","",IF($S$99=$D$54,"",IF($S$99=$I$54,"",IF($S$99=$N$54,"",IF($S$99=$S$54,"",IF($S$99=$D$99,"",IF($S$99=$I$99,"",IF($S$99=$N$99,"",$S$99)))))))) ->  | AJ12: =IF($I$54=$D$8,$I$91,0) -> 0 | AK12: =IF($N$54=$I$8,$N$91,0) -> 0 | AL12: =IF($S$54=$N$8,$S$91,0) -> 0 | AM12: =IF($D$99=$S$8,$D$136,0) -> 0 | AN12: =IF($I$99=$D$54,$I$136,0) -> 0 | AO12: =IF($N$99=$I$54,$N$136,0) -> 0 | AP12: =IF($S$99=$N$54,$S$136,0) -> 0
X13: =IF(X12="",Y12,X12) -> Vormast | Y13: Mittelmast | Z13: Endmast I | AA13: Endmast II | AB13: ddd | AC13: dddd | AD13: erer | AI13: 0 | AJ13: =IF($N$54=$D$8,$N$91,0) -> 0 | AK13: =IF($S$54=$I$8,$S$91,0) -> 0 | AL13: =IF($D$99=$N$8,$D$136,0) -> 0 | AM13: =IF($I$99=$S$8,$I$136,0) -> 0 | AN13: =IF($N$99=$D$54,$N$136,0) -> 0 | AO13: =IF($S$99=$I$54,$S$136,0) -> 0
X14: =IF(W14=X13,Y13,IF(X13="",Y13,X13)) -> Vormast | Y14: =IF(X14=Y13,Z13,IF(Y13="",Z13,Y13)) -> Mittelmast | Z14: =IF(Y14=Z13,AA13,IF(Z13="",AA13,Z13)) -> Endmast I | AA14: =IF(Z14=AA13,AB13,IF(AA13="",AB13,AA13)) -> Endmast II | AB14: =IF(AA14=AB13,AC13,IF(AB13="",AC13,AB13)) -> ddd | AC14: =IF(AB14=AC13,AD13,IF(AC13="",AD13,AC13)) -> dddd | AD14: =IF(AC14=AD13,AE13,IF(AD13="",AE13,AD13)) -> erer | AE14: =IF(AD14=AE13,AF13,IF(AE13="",AF13,AE13)) ->  | AF14: =IF(AE14=AF13,AG13,IF(AF13="",AG13,AF13)) ->  | AG14: =IF(AF14=AG13,AH13,IF(AG13="",AH13,AG13)) ->  | AH14: =IF(AG14=AH13,AI13,IF(AH13="",AI13,AH13)) -> 0 | AI14: =IF(AH14=AI13,0,IF(AI13="",0,AI13)) -> 0 | AJ14: =IF($S$54=$D$8,$S$91,0) -> 0 | AK14: =IF($D$99=$I$8,$D$136,0) -> 0 | AL14: =IF($I$99=$N$8,$I$136,0) -> 0 | AM14: =IF($N$99=$S$8,$N$136,0) -> 0 | AN14: =IF($S$99=$D$54,$S$136,0) -> 0
X15: Vormast | Y15: Mittelmast | Z15: Endmast I | AA15: Endmast II | AB15: ddd | AC15: dddd | AD15: erer | AG15: 0 | AH15: 0 | AI15: 0 | AJ15: =IF($D$99=$D$8,$D$136,0) -> 0 | AK15: =IF($I$99=$I$8,$I$136,0) -> 0 | AL15: =IF($N$99=$N$8,$N$136,0) -> 0 | AM15: =IF($S$99=$S$8,$S$136,0) -> 0
X16: Vormast | Y16: Mittelmast | Z16: Endmast I | AA16: Endmast II | AB16: ddd | AC16: dddd | AD16: erer | AF16: 0 | AG16: 0 | AH16: 0 | AI16: 0 | AJ16: =IF($I$99=$D$8,$I$136,0) -> 0 | AK16: =IF($N$99=$I$8,$N$136,0) -> 0 | AL16: =IF($S$99=$N$8,$S$136,0) -> 0
X17: Vormast | Y17: Mittelmast | Z17: Endmast I | AA17: Endmast II | AB17: ddd | AC17: dddd | AD17: erer | AE17: 0 | AF17: 0 | AG17: 0 | AH17: 0 | AI17: 0 | AJ17: =IF($N$99=$D$8,$N$136,0) -> 0 | AK17: =IF($S$99=$I$8,$S$136,0) -> 0
X18: Vormast | Y18: Mittelmast | Z18: Endmast I | AA18: Endmast II | AB18: ddd | AC18: dddd | AD18: erer | AE18: 0 | AF18: 0 | AG18: 0 | AH18: 0 | AI18: 0 | AJ18: =IF($S$99=$D$8,$S$136,0) -> 0
X19: Vormast | Y19: Mittelmast | Z19: Endmast I | AA19: Endmast II | AB19: ddd | AC19: dddd | AD19: erer | AE19: 0 | AF19: 0 | AG19: 0 | AH19: 0 | AI19: 0 | AJ19: =SUM(AJ7:AJ18) -> 180 | AK19: 5 | AL19: 6 | AM19: 7 | AN19: 8 | AO19: 9 | AP19: 25 | AQ19: 0 | AR19: 0 | AS19: 0 | AT19: 0 | AU19: 0
X20: Vormast | Y20: Mittelmast | Z20: Endmast I | AA20: Endmast II | AB20: ddd | AC20: dddd | AD20: erer | AE20: 0 | AF20: 0 | AG20: 0 | AH20: 0 | AI20: 0
X21: Vormast | Y21: Mittelmast | Z21: Endmast I | AA21: Endmast II | AB21: ddd | AC21: dddd | AD21: erer | AE21: 0 | AF21: 0 | AG21: 0 | AH21: 0 | AI21: 0
X22: Vormast | Y22: Mittelmast | Z22: Endmast I | AA22: Endmast II | AB22: ddd | AC22: dddd | AD22: erer | AE22: 0 | AF22: 0 | AG22: 0 | AH22: 0 | AI22: 0
X23: Vormast | Y23: Mittelmast | Z23: Endmast I | AA23: Endmast II | AB23: ddd | AC23: dddd | AD23: erer | AE23: 0 | AF23: 0 | AG23: 0 | AH23: 0 | AI23: 0
X24: =IF(X23=0,0,IF(X23=$D$8,$AJ$19,IF(X23=$I$8,$AK$19,IF(X23=$N$8,$AL$19,IF(X23=$S$8,$AM$19,IF(X23=$D$54,$AN$19,IF(X23=$I$54,$AO$19,IF(X23=$N$54,$AP$19,"")))))))) -> 180 | Y24: =IF(Y23=0,0,IF(Y23=$D$8,$AJ$19,IF(Y23=$I$8,$AK$19,IF(Y23=$N$8,$AL$19,IF(Y23=$S$8,$AM$19,IF(Y23=$D$54,$AN$19,IF(Y23=$I$54,$AO$19,IF(Y23=$N$54,$AP$19,"")))))))) -> 5 | Z24: =IF(Z23=0,0,IF(Z23=$D$8,$AJ$19,IF(Z23=$I$8,$AK$19,IF(Z23=$N$8,$AL$19,IF(Z23=$S$8,$AM$19,IF(Z23=$D$54,$AN$19,IF(Z23=$I$54,$AO$19,IF(Z23=$N$54,$AP$19,"")))))))) -> 6 | AA24: =IF(AA23=0,0,IF(AA23=$D$8,$AJ$19,IF(AA23=$I$8,$AK$19,IF(AA23=$N$8,$AL$19,IF(AA23=$S$8,$AM$19,IF(AA23=$D$54,$AN$19,IF(AA23=$I$54,$AO$19,IF(AA23=$N$54,$AP$19,"")))))))) -> 7 | AB24: =IF(AB23=0,0,IF(AB23=$I$8,$AK$19,IF(AB23=$N$8,$AL$19,IF(AB23=$S$8,$AM$19,IF(AB23=$D$54,$AN$19,IF(AB23=$I$54,$AO$19,IF(AB23=$N$54,$AP$19,IF(AB23=$S$54,$AQ$19,"")))))))) -> 8 | AC24: =IF(AC23=0,0,IF(AC23=$N$8,$AL$19,IF(AC23=$S$8,$AM$19,IF(AC23=$D$54,$AN$19,IF(AC23=$I$54,$AO$19,IF(AC23=$N$54,$AP$19,IF(AC23=$S$54,$AQ$19,IF(AC23=$D$99,$AR$19,"")))))))) -> 9 | AD24: =IF(AD23=0,0,IF(AD23=$S$8,$AM$19,IF(AD23=$D$54,$AN$19,IF(AD23=$I$54,$AO$19,IF(AD23=$N$54,$AP$19,IF(AD23=$S$54,$AQ$19,IF(AD23=$D$99,$AR$19,IF(AD23=$I$99,$AS$19,"")))))))) -> 25 | AE24: =IF(AE23=0,0,IF(AE23=$D$54,$AN$19,IF(AE23=$I$54,$AO$19,IF(AE23=$N$54,$AP$19,IF(AE23=$S$54,$AQ$19,IF(AE23=$D$99,$AR$19,IF(AE23=$I$99,$AS$19,IF(AE23=$N$99,$AT$19,"")))))))) -> 0 | AF24: =IF(AF23=0,0,IF(AF23=$I$54,$AO$19,IF(AF23=$N$54,$AP$19,IF(AF23=$S$54,$AQ$19,IF(AF23=$D$99,$AR$19,IF(AF23=$I$99,$AS$19,IF(AF23=$N$99,$AT$19,IF(AF23=$S$99,$AU$19,"")))))))) -> 0 | AG24: =IF(AG23=0,0,IF(AG23=$I$54,$AO$19,IF(AG23=$N$54,$AP$19,IF(AG23=$S$54,$AQ$19,IF(AG23=$D$99,$AR$19,IF(AG23=$I$99,$AS$19,IF(AG23=$N$99,$AT$19,IF(AG23=$S$99,$AU$19,"")))))))) -> 0 | AH24: =IF(AH23=0,0,IF(AH23=$I$54,$AO$19,IF(AH23=$N$54,$AP$19,IF(AH23=$S$54,$AQ$19,IF(AH23=$D$99,$AR$19,IF(AH23=$I$99,$AS$19,IF(AH23=$N$99,$AT$19,IF(AH23=$S$99,$AU$19,"")))))))) -> 0 | AI24: =IF(AI23=0,0,IF(AI23=$I$54,$AO$19,IF(AI23=$N$54,$AP$19,IF(AI23=$S$54,$AQ$19,IF(AI23=$D$99,$AR$19,IF(AI23=$I$99,$AS$19,IF(AI23=$N$99,$AT$19,IF(AI23=$S$99,$AU$19,"")))))))) -> 0
X25: =IF(X23=0,0,IF(X23=$D$8,$AJ$37,IF(X23=$I$8,$AK$37,IF(X23=$N$8,$AL$37,IF(X23=$S$8,$AM$37,IF(X23=$D$54,$AN$37,IF(X23=$I$54,$AO$37,IF(X23=$N$54,$AP$37,"")))))))) -> 1500 | Y25: =IF(Y23=0,0,IF(Y23=$D$8,$AJ$37,IF(Y23=$I$8,$AK$37,IF(Y23=$N$8,$AL$37,IF(Y23=$S$8,$AM$37,IF(Y23=$D$54,$AN$37,IF(Y23=$I$54,$AO$37,IF(Y23=$N$54,$AP$37,"")))))))) -> 150 | Z25: =IF(Z23=0,0,IF(Z23=$D$8,$AJ$37,IF(Z23=$I$8,$AK$37,IF(Z23=$N$8,$AL$37,IF(Z23=$S$8,$AM$37,IF(Z23=$D$54,$AN$37,IF(Z23=$I$54,$AO$37,IF(Z23=$N$54,$AP$37,"")))))))) -> 90 | AA25: =IF(AA23=0,0,IF(AA23=$D$8,$AJ$37,IF(AA23=$I$8,$AK$37,IF(AA23=$N$8,$AL$37,IF(AA23=$S$8,$AM$37,IF(AA23=$D$54,$AN$37,IF(AA23=$I$54,$AO$37,IF(AA23=$N$54,$AP$37,"")))))))) -> 150 | AB25: =IF(AB23=0,0,IF(AB23=$I$8,$AK$37,IF(AB23=$N$8,$AL$37,IF(AB23=$S$8,$AM$37,IF(AB23=$D$54,$AN$37,IF(AB23=$I$54,$AO$37,IF(AB23=$N$54,$AP$37,IF(AB23=$S$54,$AQ$37,"")))))))) -> 250 | AC25: =IF(AC23=0,0,IF(AC23=$N$8,$AL$37,IF(AC23=$S$8,$AM$37,IF(AC23=$D$54,$AN$37,IF(AC23=$I$54,$AO$37,IF(AC23=$N$54,$AP$37,IF(AC23=$S$54,$AQ$37,IF(AC23=$D$99,$AR$37,"")))))))) -> 210 | AD25: =IF(AD23=0,0,IF(AD23=$S$8,$AM$37,IF(AD23=$D$54,$AN$37,IF(AD23=$I$54,$AO$37,IF(AD23=$N$54,$AP$37,IF(AD23=$S$54,$AQ$37,IF(AD23=$D$99,$AR$37,IF(AD23=$I$99,$AS$37,"")))))))) -> 590 | AE25: =IF(AE23=0,0,IF(AE23=$D$54,$AN$37,IF(AE23=$I$54,$AO$37,IF(AE23=$N$54,$AP$37,IF(AE23=$S$54,$AQ$37,IF(AE23=$D$99,$AR$37,IF(AE23=$I$99,$AS$37,IF(AE23=$N$99,$AT$37,"")))))))) -> 0 | AF25: =IF(AF23=0,0,IF(AF23=$I$54,$AO$37,IF(AF23=$N$54,$AP$37,IF(AF23=$S$54,$AQ$37,IF(AF23=$D$99,$AR$37,IF(AF23=$I$99,$AS$37,IF(AF23=$N$99,$AT$37,IF(AF23=$S$99,$AU$37,"")))))))) -> 0 | AG25: =IF(AG23=0,0,IF(AG23=$I$54,$AO$37,IF(AG23=$N$54,$AP$37,IF(AG23=$S$54,$AQ$37,IF(AG23=$D$99,$AR$37,IF(AG23=$I$99,$AS$37,IF(AG23=$N$99,$AT$37,IF(AG23=$S$99,$AU$37,"")))))))) -> 0 | AH25: =IF(AH23=0,0,IF(AH23=$I$54,$AO$37,IF(AH23=$N$54,$AP$37,IF(AH23=$S$54,$AQ$37,IF(AH23=$D$99,$AR$37,IF(AH23=$I$99,$AS$37,IF(AH23=$N$99,$AT$37,IF(AH23=$S$99,$AU$37,"")))))))) -> 0 | AI25: =IF(AI23=0,0,IF(AI23=$I$54,$AO$37,IF(AI23=$N$54,$AP$37,IF(AI23=$S$54,$AQ$37,IF(AI23=$D$99,$AR$37,IF(AI23=$I$99,$AS$37,IF(AI23=$N$99,$AT$37,IF(AI23=$S$99,$AU$37,"")))))))) -> 0 | AJ25: =E45 -> 1500 | AK25: =J45 -> 150 | AL25: =O45 -> 90 | AM25: =T45 -> 150 | AN25: =E91 -> 250 | AO25: =J91 -> 210 | AP25: =O91 -> 590 | AQ25: =T91 -> 0 | AR25: =E136 -> 0 | AS25: =J136 -> 0 | AT25: =O136 -> 0 | AU25: =T136 -> 0
X26: =IF(X25=0,0,IF(Auswertung!$N$8="J",(X25*$O$6)+X25,X25)) -> 1500 | Y26: =IF(Y25=0,0,IF(Auswertung!$N$8="J",(Y25*$O$6)+Y25,Y25)) -> 150 | Z26: =IF(Z25=0,0,IF(Auswertung!$N$8="J",(Z25*$O$6)+Z25,Z25)) -> 90 | AA26: =IF(AA25=0,0,IF(Auswertung!$N$8="J",(AA25*$O$6)+AA25,AA25)) -> 150 | AB26: =IF(AB25=0,0,IF(Auswertung!$N$8="J",(AB25*$O$6)+AB25,AB25)) -> 250 | AC26: =IF(AC25=0,0,IF(Auswertung!$N$8="J",(AC25*$O$6)+AC25,AC25)) -> 210 | AD26: =IF(AD25=0,0,IF(Auswertung!$N$8="J",(AD25*$O$6)+AD25,AD25)) -> 590 | AE26: =IF(AE25=0,0,IF(Auswertung!$N$8="J",(AE25*$O$6)+AE25,AE25)) -> 0 | AF26: =IF(AF25=0,0,IF(Auswertung!$N$8="J",(AF25*$O$6)+AF25,AF25)) -> 0 | AG26: =IF(AG25=0,0,IF(Auswertung!$N$8="J",(AG25*$O$6)+AG25,AG25)) -> 0 | AH26: =IF(AH25=0,0,IF(Auswertung!$N$8="J",(AH25*$O$6)+AH25,AH25)) -> 0 | AI26: =IF(AI25=0,0,IF(Auswertung!$N$8="J",(AI25*$O$6)+AI25,AI25)) -> 0 | AJ26: =IF($I$8=$D$8,$J$45,0) -> 0 | AK26: =IF($N$8=$I$8,$O$45,0) -> 0 | AL26: =IF($S$8=$N$8,$T$45,0) -> 0 | AM26: =IF($D$54=$S$8,$E$91,0) -> 0 | AN26: =IF($I$54=$D$54,$J$91,0) -> 0 | AO26: =IF($N$54=$I$54,$O$91,0) -> 0 | AP26: =IF($S$54=$N$54,$T$91,0) -> 0 | AQ26: =IF($D$99=$S$54,$E$136,0) -> 0 | AR26: =IF($I$99=$D$99,$J$136,0) -> 0 | AS26: =IF($N$99=$I$99,$O$136,0) -> 0 | AT26: =IF($S$99=$N$99,$T$136,0) -> 0
AJ27: =IF($N$8=$D$8,$O$45,0) -> 0 | AK27: =IF($S$8=$I$8,$T$45,0) -> 0 | AL27: =IF($D$54=$N$8,$E$91,0) -> 0 | AM27: =IF($I$54=$S$8,$J$91,0) -> 0 | AN27: =IF($N$54=$D$54,$O$91,0) -> 0 | AO27: =IF($S$54=$I$54,$T$91,0) -> 0 | AP27: =IF($D$99=$N$54,$E$136,0) -> 0 | AQ27: =IF($I$99=$S$54,$J$136,0) -> 0 | AR27: =IF($N$99=$D$99,$O$136,0) -> 0 | AS27: =IF($S$99=$I$99,$T$136,0) -> 0
B28: By Heinrich-Bernhard Münzebrock Version 2019 | X28: =IF(X24=0,"",X23) -> Vormast | Y28: Mittelmast | Z28: Endmast I | AA28: Endmast II | AB28: ddd | AC28: dddd | AD28: erer | AJ28: =IF($S$8=$D$8,$T$45,0) -> 0 | AK28: =IF($D$54=$I$8,$E$91,0) -> 0 | AL28: =IF($I$54=$N$8,$J$91,0) -> 0 | AM28: =IF($N$54=$S$8,$O$91,0) -> 0 | AN28: =IF($S$54=$D$54,$T$91,0) -> 0 | AO28: =IF($D$99=$I$54,$E$136,0) -> 0 | AP28: =IF($I$99=$N$54,$J$136,0) -> 0 | AQ28: =IF($N$99=$S$54,$O$136,0) -> 0 | AR28: =IF($S$99=$D$99,$T$136,0) -> 0
X29: =IF(X28="",Y28,X28) -> Vormast | Y29: Mittelmast | Z29: Endmast I | AA29: Endmast II | AB29: ddd | AC29: dddd | AD29: erer | AI29: =IF(AI28="","",AI28) ->  | AJ29: =IF($D$54=$D$8,$E$91,0) -> 0 | AK29: =IF($I$54=$I$8,$J$91,0) -> 0 | AL29: =IF($N$54=$N$8,$O$91,0) -> 0 | AM29: =IF($S$54=$S$8,$T$91,0) -> 0 | AN29: =IF($D$99=$D$54,$E$136,0) -> 0 | AO29: =IF($I$99=$I$54,$J$136,0) -> 0 | AP29: =IF($N$99=$N$54,$O$136,0) -> 0 | AQ29: =IF($S$99=$S$54,$T$136,0) -> 0
X30: =IF(W30=X29,Y29,IF(X29="",Y29,X29)) -> Vormast | Y30: =IF(X30=Y29,Z29,IF(Y29="",Z29,Y29)) -> Mittelmast | Z30: =IF(Y30=Z29,AA29,IF(Z29="",AA29,Z29)) -> Endmast I | AA30: =IF(Z30=AA29,AB29,IF(AA29="",AB29,AA29)) -> Endmast II | AB30: =IF(AA30=AB29,AC29,IF(AB29="",AC29,AB29)) -> ddd | AC30: =IF(AB30=AC29,AD29,IF(AC29="",AD29,AC29)) -> dddd | AD30: =IF(AC30=AD29,AE29,IF(AD29="",AE29,AD29)) -> erer | AE30: =IF(AD30=AE29,AF29,IF(AE29="",AF29,AE29)) ->  | AF30: =IF(AE30=AF29,AG29,IF(AF29="",AG29,AF29)) ->  | AG30: =IF(AF30=AG29,AH29,IF(AG29="",AH29,AG29)) ->  | AH30: =IF(AG30=AH29,AI29,IF(AH29="",AI29,AH29)) ->  | AI30: =IF(AH30=AI29,"",IF(AI29="","",AI29)) ->  | AJ30: =IF($I$54=$D$8,$J$91,0) -> 0 | AK30: =IF($N$54=$I$8,$O$91,0) -> 0 | AL30: =IF($S$54=$N$8,$T$91,0) -> 0 | AM30: =IF($D$99=$S$8,$E$136,0) -> 0 | AN30: =IF($I$99=$D$54,$J$136,0) -> 0 | AO30: =IF($N$99=$I$54,$O$136,0) -> 0 | AP30: =IF($S$99=$N$54,$T$136,0) -> 0
X31: Vormast | Y31: Mittelmast | Z31: Endmast I | AA31: Endmast II | AB31: ddd | AC31: dddd | AD31: erer | AJ31: =IF($N$54=$D$8,$O$91,0) -> 0 | AK31: =IF($S$54=$I$8,$T$91,0) -> 0 | AL31: =IF($D$99=$N$8,$E$136,0) -> 0 | AM31: =IF($I$99=$S$8,$J$136,0) -> 0 | AN31: =IF($N$99=$D$54,$O$136,0) -> 0 | AO31: =IF($S$99=$I$54,$T$136,0) -> 0
X32: Vormast | Y32: Mittelmast | Z32: Endmast I | AA32: Endmast II | AB32: ddd | AC32: dddd | AD32: erer | AJ32: =IF($S$54=$D$8,$T$91,0) -> 0 | AK32: =IF($D$99=$I$8,$E$136,0) -> 0 | AL32: =IF($I$99=$N$8,$J$136,0) -> 0 | AM32: =IF($N$99=$S$8,$O$136,0) -> 0 | AN32: =IF($S$99=$D$54,$T$136,0) -> 0
X33: Vormast | Y33: Mittelmast | Z33: Endmast I | AA33: Endmast II | AB33: ddd | AC33: dddd | AD33: erer | AJ33: =IF($D$99=$D$8,$E$136,0) -> 0 | AK33: =IF($I$99=$I$8,$J$136,0) -> 0 | AL33: =IF($N$99=$N$8,$O$136,0) -> 0 | AM33: =IF($S$99=$S$8,$T$136,0) -> 0
X34: Vormast | Y34: Mittelmast | Z34: Endmast I | AA34: Endmast II | AB34: ddd | AC34: dddd | AD34: erer | AJ34: =IF($I$99=$D$8,$J$136,0) -> 0 | AK34: =IF($N$99=$I$8,$O$136,0) -> 0 | AL34: =IF($S$99=$N$8,$T$136,0) -> 0
X35: Vormast | Y35: Mittelmast | Z35: Endmast I | AA35: Endmast II | AB35: ddd | AC35: dddd | AD35: erer | AJ35: =IF($N$99=$D$8,$O$136,0) -> 0 | AK35: =IF($S$99=$I$8,$T$136,0) -> 0
X36: Vormast | Y36: Mittelmast | Z36: Endmast I | AA36: Endmast II | AB36: ddd | AC36: dddd | AD36: erer | AJ36: =IF($S$99=$D$8,$T$136,0) -> 0
X37: Vormast | Y37: Mittelmast | Z37: Endmast I | AA37: Endmast II | AB37: ddd | AC37: dddd | AD37: erer | AJ37: =SUM(AJ25:AJ36) -> 1500 | AK37: 150 | AL37: 90 | AM37: 150 | AN37: 250 | AO37: 210 | AP37: 590 | AQ37: 0 | AR37: 0 | AS37: 0 | AT37: 0 | AU37: 0
X38: Vormast | Y38: Mittelmast | Z38: Endmast I | AA38: Endmast II | AB38: ddd | AC38: dddd | AD38: erer
X39: Vormast | Y39: Mittelmast | Z39: Endmast I | AA39: Endmast II | AB39: ddd | AC39: dddd | AD39: erer
X40: Vormast | Y40: Mittelmast | Z40: Endmast I | AA40: Endmast II | AB40: ddd | AC40: dddd | AD40: erer
X41: Vormast | Y41: Mittelmast | Z41: Endmast I | AA41: Endmast II | AB41: ddd | AC41: dddd | AD41: erer
C45: Gesamt: | D45: =SUM(D12:D44) -> 180 | E45: =IF(E9="",SUM(E12:E44),(E9*D45)) -> 1500 | H45: Gesamt: | I45: =SUM(I12:I44) -> 5 | J45: =IF(J9="",SUM(J12:J44),(J9*I45)) -> 150 | M45: Gesamt: | N45: =SUM(N12:N44) -> 6 | O45: =IF(O9="",SUM(O12:O44),(O9*N45)) -> 90 | R45: Gesamt: | S45: =SUM(S12:S44) -> 7 | T45: =IF(T9="",SUM(T12:T44),(T9*S45)) -> 150 | X45: =IF(X24=0,"",X24) -> 180 | Y45: 5 | Z45: 6 | AA45: 7 | AB45: 8 | AC45: 9 | AD45: 25
X46: =IF(X45="",Y45,X45) -> 180 | Y46: 5 | Z46: 6 | AA46: 7 | AB46: 8 | AC46: 9 | AD46: 25 | AI46: =IF(AI45="","",AI45) -> 
S47: Strg+d=Seite drucken | X47: =IF(W47=X46,Y46,IF(X46="",Y46,X46)) -> 180 | Y47: =IF(X47=Y46,Z46,IF(Y46="",Z46,Y46)) -> 5 | Z47: =IF(Y47=Z46,AA46,IF(Z46="",AA46,Z46)) -> 6 | AA47: =IF(Z47=AA46,AB46,IF(AA46="",AB46,AA46)) -> 7 | AB47: =IF(AA47=AB46,AC46,IF(AB46="",AC46,AB46)) -> 8 | AC47: =IF(AB47=AC46,AD46,IF(AC46="",AD46,AC46)) -> 9 | AD47: =IF(AC47=AD46,AE46,IF(AD46="",AE46,AD46)) -> 25 | AE47: =IF(AD47=AE46,AF46,IF(AE46="",AF46,AE46)) ->  | AF47: =IF(AE47=AF46,AG46,IF(AF46="",AG46,AF46)) ->  | AG47: =IF(AF47=AG46,AH46,IF(AG46="",AH46,AG46)) ->  | AH47: =IF(AG47=AH46,AI46,IF(AH46="",AI46,AH46)) ->  | AI47: =IF(AH47=AI46,"",IF(AI46="","",AI46)) -> 
C48: Auswertung Schweinemast / Erfassungsbogen Futter | M48: Name: | N48: =Tiere_Zu_Abgang!J6 ->  | S48: Strg+c=Eingaben löschen | X48: 180 | Y48: 5 | Z48: 6 | AA48: 7 | AB48: 8 | AC48: 9 | AD48: 25
J49: =TODAY() -> 2020-09-01 | M49: Stall/Ställe/Partie Nr.: | O49: =Tiere_Zu_Abgang!Q5 -> 1 | X49: 180 | Y49: 5 | Z49: 6 | AA49: 7 | AB49: 8 | AC49: 9 | AD49: 25
C50: Lieferant: | M50: Silo Nr.: | S50: Blatt 2 | X50: 180 | Y50: 5 | Z50: 6 | AA50: 7 | AB50: 8 | AC50: 9 | AD50: 25
C51: =IF(E58="","","Achtung: bitte nur Nettopreise eingeben = ohne Steuer") -> Achtung: bitte nur Nettopreise eingeben = ohne Steuer | J51: =IF(O6="","bitte den Steuersatz für Futtereinkauf eingeben!!","") ->  | X51: 180 | Y51: 5 | Z51: 6 | AA51: 7 | AB51: 8 | AC51: 9 | AD51: 25
C52: * = Bitte nur angeben, wenn der Preis für den gesamten Durchgang gültig ist! - hierbei entfällt die Eingabe des Gesampreises!. | X52: 180 | Y52: 5 | Z52: 6 | AA52: 7 | AB52: 8 | AC52: 9 | AD52: 25
X53: 180 | Y53: 5 | Z53: 6 | AA53: 7 | AB53: 8 | AC53: 9 | AD53: 25
C54: Futtersorte | D54: ddd | H54: Futtersorte | I54: dddd | M54: Futtersorte | N54: erer | R54: Futtersorte | X54: 180 | Y54: 5 | Z54: 6 | AA54: 7 | AB54: 8 | AC54: 9 | AD54: 25
C55: *Kontraktpreis?/dt: | H55: *Kontraktpreis?/dt: | M55: *Kontraktpreis?/dt: | R55: *Kontraktpreis?/dt: | X55: 180 | Y55: 5 | Z55: 6 | AA55: 7 | AB55: 8 | AC55: 9 | AD55: 25
C56: =IF(E58="","","Achtung: bitte Nettopreise eingeben = o Steuer") -> Achtung: bitte Nettopreise eingeben = o Steuer | H56: =IF(J58="","","Achtung: bitte Nettopreise eingeben = o Steuer") -> Achtung: bitte Nettopreise eingeben = o Steuer | M56: =IF(O58="","","Achtung: bitte Nettopreise eingeben = o Steuer") -> Achtung: bitte Nettopreise eingeben = o Steuer | R56: =IF(T58="","","Achtung: bitte Nettopreise eingeben = o Steuer") ->  | X56: 180 | Y56: 5 | Z56: 6 | AA56: 7 | AB56: 8 | AC56: 9 | AD56: 25
C57: Lieferdatum | D57: Menge/dt | E57: Gesamtpreis | H57: Lieferdatum | I57: Menge/dt | J57: Gesamtpreis | M57: Lieferdatum | N57: Menge/dt | O57: Gesamtpreis | R57: Lieferdatum | S57: Menge/dt | T57: Gesamtpreis | X57: 180 | Y57: 5 | Z57: 6 | AA57: 7 | AB57: 8 | AC57: 9 | AD57: 25
D58: 8 | E58: 250 | I58: 9 | J58: 210 | N58: 10 | O58: 240 | X58: 180 | Y58: 5 | Z58: 6 | AA58: 7 | AB58: 8 | AC58: 9 | AD58: 25
N59: 15 | O59: 350 | X59: 180 | Y59: 5 | Z59: 6 | AA59: 7 | AB59: 8 | AC59: 9 | AD59: 25
X60: 180 | Y60: 5 | Z60: 6 | AA60: 7 | AB60: 8 | AC60: 9 | AD60: 25
X61: 180 | Y61: 5 | Z61: 6 | AA61: 7 | AB61: 8 | AC61: 9 | AD61: 25 | AJ61: =SUM(X61:AI61) -> 240
X66: =IF(X24=0,"",X26) -> 1500 | Y66: 150 | Z66: 90 | AA66: 150 | AB66: 250 | AC66: 210 | AD66: 590
X67: =IF(X66="",Y66,X66) -> 1500 | Y67: 150 | Z67: 90 | AA67: 150 | AB67: 250 | AC67: 210 | AD67: 590 | AI67: =IF(AI66="","",AI66) -> 
X68: =IF(W68=X67,Y67,IF(X67="",Y67,X67)) -> 1500 | Y68: =IF(X68=Y67,Z67,IF(Y67="",Z67,Y67)) -> 150 | Z68: =IF(Y68=Z67,AA67,IF(Z67="",AA67,Z67)) -> 90 | AA68: =IF(Z68=AA67,AB67,IF(AA67="",AB67,AA67)) -> 150 | AB68: =IF(AA68=AB67,AC67,IF(AB67="",AC67,AB67)) -> 250 | AC68: =IF(AB68=AC67,AD67,IF(AC67="",AD67,AC67)) -> 210 | AD68: =IF(AC68=AD67,AE67,IF(AD67="",AE67,AD67)) -> 590 | AE68: =IF(AD68=AE67,AF67,IF(AE67="",AF67,AE67)) ->  | AF68: =IF(AE68=AF67,AG67,IF(AF67="",AG67,AF67)) ->  | AG68: =IF(AF68=AG67,AH67,IF(AG67="",AH67,AG67)) ->  | AH68: =IF(AG68=AH67,AI67,IF(AH67="",AI67,AH67)) ->  | AI68: =IF(AH68=AI67,"",IF(AI67="","",AI67)) -> 
X69: 1500 | Y69: 150 | Z69: 90 | AA69: 150 | AB69: 250 | AC69: 210 | AD69: 590
X70: 1500 | Y70: 150 | Z70: 90 | AA70: 150 | AB70: 250 | AC70: 210 | AD70: 590
X71: 1500 | Y71: 150 | Z71: 90 | AA71: 150 | AB71: 250 | AC71: 210 | AD71: 590
X72: 1500 | Y72: 150 | Z72: 90 | AA72: 150 | AB72: 250 | AC72: 210 | AD72: 590
X73: 1500 | Y73: 150 | Z73: 90 | AA73: 150 | AB73: 250 | AC73: 210 | AD73: 590
B74: By Heinrich-Bernhard Münzebrock Version 2019 | X74: 1500 | Y74: 150 | Z74: 90 | AA74: 150 | AB74: 250 | AC74: 210 | AD74: 590
X75: 1500 | Y75: 150 | Z75: 90 | AA75: 150 | AB75: 250 | AC75: 210 | AD75: 590
X76: 1500 | Y76: 150 | Z76: 90 | AA76: 150 | AB76: 250 | AC76: 210 | AD76: 590
X77: 1500 | Y77: 150 | Z77: 90 | AA77: 150 | AB77: 250 | AC77: 210 | AD77: 590
X78: 1500 | Y78: 150 | Z78: 90 | AA78: 150 | AB78: 250 | AC78: 210 | AD78: 590
X79: 1500 | Y79: 150 | Z79: 90 | AA79: 150 | AB79: 250 | AC79: 210 | AD79: 590
X80: 1500 | Y80: 150 | Z80: 90 | AA80: 150 | AB80: 250 | AC80: 210 | AD80: 590
X81: 1500 | Y81: 150 | Z81: 90 | AA81: 150 | AB81: 250 | AC81: 210 | AD81: 590 | AJ81: =SUM(X81:AI81) -> 2940
C91: Gesamt: | D91: =SUM(D58:D90) -> 8 | E91: =IF(E55="",SUM(E58:E90),(D91*E55)) -> 250 | H91: Gesamt: | I91: =SUM(I58:I90) -> 9 | J91: =IF(J55="",SUM(J58:J90),(I91*J55)) -> 210 | M91: Gesamt: | N91: =SUM(N58:N90) -> 25 | O91: =IF(O55="",SUM(O58:O90),(N91*O55)) -> 590 | R91: Gesamt: | S91: =SUM(S58:S90) -> 0 | T91: =IF(T55="",SUM(T58:T90),(S91*T55)) -> 0
C93: Auswertung Schweinemast / Erfassungsbogen Futter | M93: Name: | N93: =N3 ->  | S93: Strg+c=Eingaben löschen
J94: =TODAY() -> 2020-09-01 | M94: Stall/Ställe/Partie Nr.: | O94: =O4 -> 1
C95: Lieferant: | M95: Silo Nr.: | S95: Blatt 3
C96: =IF(E103="","","Achtung: bitte nur Nettopreise eingeben = ohne Steuer") ->  | J96: =IF(O6="","bitte den Steuersatz für Futtereinkauf eingeben!!","") -> 
C97: * = Bitte nur angeben, wenn der Preis für den gesamten Durchgang gültig ist! - hierbei entfällt die Eingabe des Gesampreises!.
C99: Futtersorte | H99: Futtersorte | M99: Futtersorte | R99: Futtersorte
C100: *Kontraktpreis?/dt: | H100: *Kontraktpreis?/dt: | M100: *Kontraktpreis?/dt: | R100: *Kontraktpreis?/dt:
C101: =IF(E103="","","Achtung: bitte Nettopreise eingeben = o Steuer") ->  | H101: =IF(J103="","","Achtung: bitte Nettopreise eingeben = o Steuer") ->  | M101: =IF(O103="","","Achtung: bitte Nettopreise eingeben = o Steuer") ->  | R101: Zusätze wie Molke, Quellwasser usw.
C102: Lieferdatum | D102: Menge/dt | E102: Gesamtpreis | H102: Lieferdatum | I102: Menge/dt | J102: Gesamtpreis | M102: Lieferdatum | N102: Menge/dt | O102: Gesamtpreis | R102: Lieferdatum | S102: Menge/dt | T102: Gesamtpreis
B119: By Heinrich-Bernhard Münzebrock Version 2019
C136: Gesamt: | D136: =SUM(D103:D135) -> 0 | E136: =IF(E100="",SUM(E103:E135),(D136*E100)) -> 0 | H136: Gesamt: | I136: =SUM(I103:I135) -> 0 | J136: =IF(J100="",SUM(J103:J135),(I136*J100)) -> 0 | M136: Gesamt: | N136: =SUM(N103:N135) -> 0 | O136: =IF(O100="",SUM(O103:O135),(N136*O100)) -> 0 | R136: Gesamt: | S136: =SUM(S103:S135) -> 0 | T136: =IF(T100="",SUM(T103:T135),(S136*T100)) -> 0

Sheet Kosten
AR2: B
C3: Auswertung Schweinemast / Erfassungsbogen Kosten
H4: =TODAY() -> 2020-09-01
C5: Name: | D5: =Tiere_Zu_Abgang!J6 -> 
C6: Stall/Ställe/Partie Nr.: | D6: =Tiere_Zu_Abgang!Q5 -> 1 | I6: Strg+o=Eingaben löschen
C7: Stallplätze: | D7: =Auswertung!N5 -> 0 | H7: EK – Steuersatz: | L7: =IF(I7="","<--- bitte an-geben","") -> <--- bitte an-geben
C9: Variable Kosten | H9: Feste Kosten / Jahr
C10: ="Achtung: bitte nur Nettopreise eingeben = ohne Mwst" -> Achtung: bitte nur Nettopreise eingeben = ohne Mwst | E10: 609.48 | G10: * = Berechnung erfolgt ohne Steuer | Q10: Var. Kostenerrechnung | Z10: Feste Kostenberechnung
B11: * | C11: Tierarzt u. Medikamente: | D11: 500 | G11: * | H11: Pacht: | I11: 500 | O11: =IF($D$21>0,$C$11,"") -> Tierarzt u. Medikamente: | P11: =IF($D$29>0,$C$23,"") -> Heizung: | Q11: =IF($D$36>0,$C$31,"") ->  | R11: =IF($D$44>0,$C$40,"") ->  | S11: =IF($D$50>0,$C$46,"") ->  | T11: =IF($D$56>0,$C$52,"") ->  | U11: =IF($D$61>0,$C$58,"") ->  | W11: =IF($I$14>0,$H$11,"") -> Pacht: | X11: =IF($I$19>0,$H$16,"") ->  | Y11: =IF($I$24>0,$H$21,"") -> Gülleabgabe | Z11: =IF($I$29>0,$H$26,"") ->  | AA11: =IF($I$36>0,$H$31,"") ->  | AB11: =IF($I$44>0,$H$40,"") ->  | AC11: =IF($I$50>0,$H$46,"") ->  | AD11: =IF($I$56>0,$H$52,"") ->  | AE11: =IF($I$61>0,$H$58,"") ->  | AG11: =IF($I$14>0,$H$11,"") -> Pacht: | AH11: =IF($I$19>0,$H$16,"") ->  | AI11: =IF($I$24>0,$H$31,"") -> Filteranlage: | AJ11: =IF($I$29>0,$H$21,"") ->  | AK11: =IF($I$36>0,$H$26,"") ->  | AL11: =IF($I$44>0,$H$40,"") ->  | AM11: =IF($I$50>0,$H$46,"") ->  | AN11: =IF($I$56>0,$H$52,"") ->  | AO11: =IF($I$61>0,$H$58,"") -> 
O12: =IF(O11="",P11,O11) -> Tierarzt u. Medikamente: | P12: =IF(P11="",Q11,IF(O12=P11,Q11,P11)) -> Heizung: | U12: 0 | W12: =IF(W11="",X11,W11) -> Pacht: | X12: Gülleabgabe | Y12: Gülleabgabe | AE12: 0
O13: =IF(O12=P12,P12,IF(O12="",P12,O12)) -> Tierarzt u. Medikamente: | P13: Heizung: | S13: =IF(R13=S12,T12,IF(S12="",T12,S12)) ->  | T13: 0 | U13: 0 | W13: =IF(W12=X12,X12,IF(W12="",X12,W12)) -> Pacht: | X13: =IF(W13=X12,Y12,IF(X12="",Y12,X12)) -> Gülleabgabe | Y13: =IF(X13=Y12,Z12,IF(Y12="",Z12,Y12)) ->  | Z13: =IF(Y13=Z12,AA12,IF(Z12="",AA12,Z12)) ->  | AA13: =IF(Z13=AA12,AB12,IF(AA12="",AB12,AA12)) ->  | AB13: =IF(AA13=AB12,AC12,IF(AB12="",AC12,AB12)) ->  | AC13: =IF(AB13=AC12,AD12,IF(AC12="",AD12,AC12)) ->  | AD13: =IF(AC13=AD12,AE12,IF(AD12="",AE12,AD12)) -> 0 | AE13: =IF(AD13=AE12,AF12,IF(AE12="",AF12,AE12)) -> 0
H14: =IF(Auswertung!$N$8<>"J","Gesamt:",IF(G11<>"*","Gesamt incl. Mwst:","Gesamt:")) -> Gesamt: | I14: =IF(G11="*",SUM(I11:I13),IF(Auswertung!$N$8<>"J",SUM(I11:I13),(SUM(I11:I13)*$I$7)+SUM(I11:I13))) -> 500 | O14: Tierarzt u. Medikamente: | P14: Heizung: | S14: 0 | T14: 0 | U14: 0 | W14: Pacht: | X14: Gülleabgabe | AC14: 0 | AD14: 0 | AE14: 0
E15: =SUM(E10:E14) -> 609.48 | K15: =SUM(K10:K14) -> 0 | O15: Tierarzt u. Medikamente: | P15: Heizung: | R15: 0 | S15: 0 | T15: 0 | U15: 0 | W15: Pacht: | X15: Gülleabgabe | AB15: 0 | AC15: 0 | AD15: 0 | AE15: 0
G16: * | H16: Futterlohn: | O16: Tierarzt u. Medikamente: | P16: Heizung: | Q16: 0 | R16: 0 | S16: 0 | T16: 0 | U16: 0 | W16: Pacht: | X16: Gülleabgabe | AA16: 0 | AB16: 0 | AC16: 0 | AD16: 0 | AE16: 0
O17: Tierarzt u. Medikamente: | P17: Heizung: | Q17: 0 | R17: 0 | S17: 0 | T17: 0 | U17: 0 | W17: Pacht: | X17: Gülleabgabe | Z17: 0 | AA17: 0 | AB17: 0 | AC17: 0 | AD17: 0 | AE17: 0
O18: Tierarzt u. Medikamente: | P18: Heizung: | Q18: 0 | R18: 0 | S18: 0 | T18: 0 | U18: 0 | W18: Pacht: | X18: Gülleabgabe | Y18: 0 | Z18: 0 | AA18: 0 | AB18: 0 | AC18: 0 | AD18: 0 | AE18: 0
H19: =IF(Auswertung!$N$8<>"J","Gesamt:",IF(G16<>"*","Gesamt incl. Mwst:","Gesamt:")) -> Gesamt: | I19: =IF(G16="*",SUM(I16:I18),IF(Auswertung!$N$8<>"J",SUM(I16:I18),(SUM(I16:I18)*$I$7)+SUM(I16:I18))) -> 0 | O19: =IF(O18=$C$11,$D21,IF(O18=$C$23,$D$29,IF(O18=$C$31,$D$36,IF(O18=$C$40,$D$44,IF(O18=$C$46,$D$50,IF(O18=$C$52,$D$56,IF(O18=$C$58,$D$61,""))))))) -> 500 | P19: 150 | Q19: 0 | R19: 0 | S19: 0 | T19: 0 | U19: 0 | W19: Pacht: | X19: Gülleabgabe | Y19: 0 | Z19: 0 | AA19: 0 | AB19: 0 | AC19: 0 | AD19: 0 | AE19: 0
W20: Pacht: | X20: Gülleabgabe | Y20: 0 | Z20: 0 | AA20: 0 | AB20: 0 | AC20: 0 | AD20: 0 | AE20: 0
C21: =IF(Auswertung!$N$8="J","Gesamt incl. Mwst:","Gesamt netto") -> Gesamt netto | D21: =IF(B11="*",SUM(D11:D20),IF(Auswertung!$N$8="J",(SUM(D11:D20)*$I$7)+SUM(D11:D20),SUM(D11:D20))) -> 500 | H21: Gülleabgabe | I21: 100 | W21: Pacht: | X21: Gülleabgabe | Y21: 0 | Z21: 0 | AA21: 0 | AB21: 0 | AC21: 0 | AD21: 0 | AE21: 0
E22: 240 | W22: =IF(W21=$H$11,$I14,IF(W21=$H$16,$I$19,IF(W21=$H$21,$I$24,IF(W21=$H$26,$I$29,IF(W21=$H$31,$I$36,IF(W21=$H$40,$I$44,IF(W21=$H$46,$I$50,IF(W21=$H$52,$I$56,"")))))))) -> 500 | X22: 100 | Y22: 0 | Z22: 0 | AA22: 0 | AB22: 0 | AC22: 0 | AD22: 0 | AE22: 0 | AF22: 0
B23: * | C23: Heizung: | D23: 150
H24: =IF(Auswertung!$N$8<>"J","Gesamt:",IF(G21<>"*","Gesamt incl. Mwst:","Gesamt:")) -> Gesamt: | I24: =IF(G21="*",SUM(I21:I23),IF(Auswertung!$N$8<>"J",SUM(I21:I23),(SUM(I21:I23)*$I$7)+SUM(I21:I23))) -> 100 | K24: =SUM(K21:K23) -> 0
G26: *
C29: =IF(Auswertung!$N$8<>"J","Gesamt:",IF(B26<>"*","Gesamt incl. Mwst:","Gesamt:")) -> Gesamt: | D29: =IF(B23="*",SUM(D23:D28),IF(Auswertung!$N$8="J",(SUM(D23:D28)*$I$7)+SUM(D23:D28),SUM(D23:D28))) -> 150 | E29: =SUM(E26:E28) -> 0 | H29: =IF(Auswertung!$N$8<>"J","Gesamt:",IF(G26<>"*","Gesamt incl. Mwst:","Gesamt:")) -> Gesamt: | I29: =IF(G26="*",SUM(I26:I28),IF(Auswertung!$N$8<>"J",SUM(I26:I28),(SUM(I26:I28)*$I$7)+SUM(I26:I28))) -> 0
E30: 609.48 | K30: =SUM(K25:K29) -> 0
B31: * | C31: Stallreinigung: | G31: * | H31: Filteranlage:
E35: =SUM(E30:E34) -> 609.48
C36: =IF(Auswertung!$N$8<>"J","Gesamt:",IF(B31<>"*","Gesamt incl. Mwst:","Gesamt:")) -> Gesamt: | D36: =IF(B31="*",SUM(D31:D35),IF(Auswertung!$N$8="J",(SUM(D31:D35)*$I$7)+SUM(D31:D35),SUM(D31:D35))) -> 0 | H36: =IF(Auswertung!$N$8<>"J","Gesamt:",IF(G31<>"*","Gesamt incl. Mwst:","Gesamt:")) -> Gesamt: | I36: =IF(G31="*",SUM(I31:I35),IF(Auswertung!$N$8<>"J",SUM(I31:I35),(SUM(I31:I35)*$I$7)+SUM(I31:I35))) -> 0
C38: Nachfolgend können Sie weitere Kosten | H38: Nachfolgend können Sie weitere Kosten
C39: und Beträge eingeben: | H39: und Beträge eingeben:
B40: * | C40: Strom | E40: 240 | G40: *
C44: =IF(Auswertung!$N$8<>"J","Gesamt:",IF(B40<>"*","Gesamt incl. Mwst:","Gesamt:")) -> Gesamt: | D44: =IF(B40="*",SUM(D40:D43),IF(Auswertung!$N$8="J",(SUM(D40:D43)*$I$7)+SUM(D40:D43),SUM(D40:D43))) -> 0 | H44: =IF(Auswertung!$N$8<>"J","Gesamt:",IF(G40<>"*","Gesamt incl. Mwst:","Gesamt:")) -> Gesamt: | I44: =IF(G40="*",SUM(I40:I43),IF(Auswertung!$N$8<>"J",SUM(I40:I43),(SUM(I40:I43)*$I$7)+SUM(I40:I43))) -> 0
B46: * | G46: *
C50: =IF(Auswertung!$N$8<>"J","Gesamt:",IF(B46<>"*","Gesamt incl. Mwst:","Gesamt:")) -> Gesamt: | D50: =IF(B46="*",SUM(D46:D49),IF(Auswertung!$N$8="J",(SUM(D46:D49)*$I$7)+SUM(D46:D49),SUM(D46:D49))) -> 0 | H50: =IF(Auswertung!$N$8<>"J","Gesamt:",IF(G46<>"*","Gesamt incl. Mwst:","Gesamt:")) -> Gesamt: | I50: =IF(G46="*",SUM(I46:I49),IF(Auswertung!$N$8<>"J",SUM(I46:I49),(SUM(I46:I49)*$I$7)+SUM(I46:I49))) -> 0
B52: * | G52: *
C56: =IF(Auswertung!$N$8<>"J","Gesamt:",IF(B52<>"*","Gesamt incl. Mwst:","Gesamt:")) -> Gesamt: | D56: =IF(B52="*",SUM(D52:D55),IF(Auswertung!$N$8="J",(SUM(D52:D55)*$I$7)+SUM(D52:D55),SUM(D52:D55))) -> 0 | H56: =IF(Auswertung!$N$8<>"J","Gesamt:",IF(G52<>"*","Gesamt incl. Mwst:","Gesamt:")) -> Gesamt: | I56: =IF(G52="*",SUM(I52:I55),IF(Auswertung!$N$8<>"J",SUM(I52:I55),(SUM(I52:I55)*$I$7)+SUM(I52:I55))) -> 0
B58: * | G58: *
C61: =IF(Auswertung!$N$8<>"J","Gesamt:",IF(B58<>"*","Gesamt incl. Mwst:","Gesamt:")) -> Gesamt: | D61: =IF(B58="*",SUM(D58:D60),IF(Auswertung!$N$8="J",(SUM(D58:D60)*$I$7)+SUM(D58:D60),SUM(D58:D60))) -> 0 | H61: =IF(Auswertung!$N$8<>"J","Gesamt:",IF(G58<>"*","Gesamt incl. Mwst:","Gesamt:")) -> Gesamt: | I61: =IF(G58="*",SUM(I58:I60),IF(Auswertung!$N$8<>"J",SUM(I58:I60),(SUM(I58:I60)*$I$7)+SUM(I58:I60))) -> 0
D62: By Heinr.-Bernh. Muenzebrock Version 2019

Sheet Bestandsregister
M2: Strg+d=Seite drucken | N2: =TODAY() -> 2020-09-01
C3: B e s t a n d s r e g i s t e r M a s t s c h w e i n e | K3: Seite Nr.: | M3: Stall/Ställe/Partie: | N3: =Auswertung!N3 -> 1
C5: Name: | D5: =CONCATENATE(Auswertung!D5," , ",Auswertung!D6) -> , | J5: Betriebsnr.: | K5: =Auswertung!D8 -> 0 | M5: Tiere im Bestand: | N5: =IF(D9="",0,SUM(D9:D13)-SUM(F14:F38)-SUM(E39:E55)) -> 0
C7: Zu-Abgang | D7: Zugang | E7: Abgang | F7: Tote Anzahl | G7: Betriebs/Ohrmarken | I7: Adresse Woher - Wohin | J7: Stall | K7: Reinigung | L7: Desinfekt | M7: Kontr. d. T-Arzt | N7: Bemerkungen
C8: Datum | D8: Anzahl | E8: Anzahl | G8: Nummer/n | J8: Nr. | K8: Datum | L8: Datum | M8: Datum / Name
C9: =IF(Tiere_Zu_Abgang!I16="","",Tiere_Zu_Abgang!I16) -> 2020-05-15 | D9: =IF(Tiere_Zu_Abgang!J16="","",Tiere_Zu_Abgang!J16) -> 100 | G9: =IF(Tiere_Zu_Abgang!P16="","",Tiere_Zu_Abgang!P16) ->  | I9: =IF(Tiere_Zu_Abgang!Q16="","",Tiere_Zu_Abgang!Q16) ->  | J9: =IF(Tiere_Zu_Abgang!AB16="","",Tiere_Zu_Abgang!AB16) -> 
C10: =IF(Tiere_Zu_Abgang!I17="","",Tiere_Zu_Abgang!I17) ->  | D10: =IF(Tiere_Zu_Abgang!J17="","",Tiere_Zu_Abgang!J17) ->  | G10: =IF(Tiere_Zu_Abgang!P17="","",Tiere_Zu_Abgang!P17) -> 
C11: =IF(Tiere_Zu_Abgang!I18="","",Tiere_Zu_Abgang!I18) ->  | D11: =IF(Tiere_Zu_Abgang!J18="","",Tiere_Zu_Abgang!J18) ->  | G11: =IF(Tiere_Zu_Abgang!P18="","",Tiere_Zu_Abgang!P18) -> 
C12: =IF(Tiere_Zu_Abgang!I19="","",Tiere_Zu_Abgang!I19) ->  | D12: =IF(Tiere_Zu_Abgang!J19="","",Tiere_Zu_Abgang!J19) ->  | G12: =IF(Tiere_Zu_Abgang!P19="","",Tiere_Zu_Abgang!P19) ->  | K12: Restmenge
C13: =IF(Tiere_Zu_Abgang!I20="","",Tiere_Zu_Abgang!I20) ->  | D13: =IF(Tiere_Zu_Abgang!J20="","",Tiere_Zu_Abgang!J20) ->  | G13: =IF(Tiere_Zu_Abgang!P20="","",Tiere_Zu_Abgang!P20) ->  | R13: =SUM(D9:D13) -> 100
C14: =IF(Tiere_Zu_Abgang!I53="","",Tiere_Zu_Abgang!I53) -> 2020-08-15 | F14: =IF(Tiere_Zu_Abgang!J53="","",Tiere_Zu_Abgang!J53) -> 5 | I14: =IF(Tiere_Zu_Abgang!N53="","",Tiere_Zu_Abgang!N53) ->  | J14: =IF(Tiere_Zu_Abgang!M53="","",Tiere_Zu_Abgang!M53) ->  | K14: =IF(D9="","",IF(F14="","",SUM(D9:D13)-F14)) -> 95 | Y14: =IF(K14="","",IF(K15<>"","",K14)) -> 95
C15: =IF(Tiere_Zu_Abgang!I54="","",Tiere_Zu_Abgang!I54) ->  | F15: =IF(Tiere_Zu_Abgang!J54="","",Tiere_Zu_Abgang!J54) ->  | I15: =IF(Tiere_Zu_Abgang!N54="","",Tiere_Zu_Abgang!N54) ->  | J15: =IF(Tiere_Zu_Abgang!M54="","",Tiere_Zu_Abgang!M54) ->  | K15: =IF($D$9="","",IF(F15="","",SUM($D$9:$D$13)-SUM($F$14:F15))) -> 
C16: =IF(Tiere_Zu_Abgang!I55="","",Tiere_Zu_Abgang!I55) ->  | F16: =IF(Tiere_Zu_Abgang!J55="","",Tiere_Zu_Abgang!J55) ->  | I16: =IF(Tiere_Zu_Abgang!N55="","",Tiere_Zu_Abgang!N55) ->  | J16: =IF(Tiere_Zu_Abgang!M55="","",Tiere_Zu_Abgang!M55) ->  | K16: =IF($D$9="","",IF(F16="","",SUM($D$9:$D$13)-SUM($F$14:F16))) -> 
C17: =IF(Tiere_Zu_Abgang!I56="","",Tiere_Zu_Abgang!I56) ->  | F17: =IF(Tiere_Zu_Abgang!J56="","",Tiere_Zu_Abgang!J56) ->  | I17: =IF(Tiere_Zu_Abgang!N56="","",Tiere_Zu_Abgang!N56) ->  | J17: =IF(Tiere_Zu_Abgang!M56="","",Tiere_Zu_Abgang!M56) ->  | K17: =IF($D$9="","",IF(F17="","",SUM($D$9:$D$13)-SUM($F$14:F17))) -> 
C18: =IF(Tiere_Zu_Abgang!I57="","",Tiere_Zu_Abgang!I57) ->  | F18: =IF(Tiere_Zu_Abgang!J57="","",Tiere_Zu_Abgang!J57) ->  | I18: =IF(Tiere_Zu_Abgang!N57="","",Tiere_Zu_Abgang!N57) ->  | J18: =IF(Tiere_Zu_Abgang!M57="","",Tiere_Zu_Abgang!M57) ->  | K18: =IF($D$9="","",IF(F18="","",SUM($D$9:$D$13)-SUM($F$14:F18))) -> 
C19: =IF(Tiere_Zu_Abgang!I58="","",Tiere_Zu_Abgang!I58) ->  | F19: =IF(Tiere_Zu_Abgang!J58="","",Tiere_Zu_Abgang!J58) ->  | I19: =IF(Tiere_Zu_Abgang!N58="","",Tiere_Zu_Abgang!N58) ->  | J19: =IF(Tiere_Zu_Abgang!M58="","",Tiere_Zu_Abgang!M58) ->  | K19: =IF($D$9="","",IF(F19="","",SUM($D$9:$D$13)-SUM($F$14:F19))) -> 
C20: =IF(Tiere_Zu_Abgang!I59="","",Tiere_Zu_Abgang!I59) ->  | F20: =IF(Tiere_Zu_Abgang!J59="","",Tiere_Zu_Abgang!J59) ->  | I20: =IF(Tiere_Zu_Abgang!N59="","",Tiere_Zu_Abgang!N59) ->  | J20: =IF(Tiere_Zu_Abgang!M59="","",Tiere_Zu_Abgang!M59) ->  | K20: =IF($D$9="","",IF(F20="","",SUM($D$9:$D$13)-SUM($F$14:F20))) -> 
C21: =IF(Tiere_Zu_Abgang!I60="","",Tiere_Zu_Abgang!I60) ->  | F21: =IF(Tiere_Zu_Abgang!J60="","",Tiere_Zu_Abgang!J60) ->  | I21: =IF(Tiere_Zu_Abgang!N60="","",Tiere_Zu_Abgang!N60) ->  | J21: =IF(Tiere_Zu_Abgang!M60="","",Tiere_Zu_Abgang!M60) ->  | K21: =IF($D$9="","",IF(F21="","",SUM($D$9:$D$13)-SUM($F$14:F21))) -> 
C22: =IF(Tiere_Zu_Abgang!I61="","",Tiere_Zu_Abgang!I61) ->  | F22: =IF(Tiere_Zu_Abgang!J61="","",Tiere_Zu_Abgang!J61) ->  | I22: =IF(Tiere_Zu_Abgang!N61="","",Tiere_Zu_Abgang!N61) ->  | J22: =IF(Tiere_Zu_Abgang!M61="","",Tiere_Zu_Abgang!M61) ->  | K22: =IF($D$9="","",IF(F22="","",SUM($D$9:$D$13)-SUM($F$14:F22))) -> 
C23: =IF(Tiere_Zu_Abgang!I62="","",Tiere_Zu_Abgang!I62) ->  | F23: =IF(Tiere_Zu_Abgang!J62="","",Tiere_Zu_Abgang!J62) ->  | I23: =IF(Tiere_Zu_Abgang!N62="","",Tiere_Zu_Abgang!N62) ->  | J23: =IF(Tiere_Zu_Abgang!M62="","",Tiere_Zu_Abgang!M62) ->  | K23: =IF($D$9="","",IF(F23="","",SUM($D$9:$D$13)-SUM($F$14:F23))) -> 
C24: =IF(Tiere_Zu_Abgang!I63="","",Tiere_Zu_Abgang!I63) ->  | F24: =IF(Tiere_Zu_Abgang!J63="","",Tiere_Zu_Abgang!J63) ->  | I24: =IF(Tiere_Zu_Abgang!N63="","",Tiere_Zu_Abgang!N63) ->  | J24: =IF(Tiere_Zu_Abgang!M63="","",Tiere_Zu_Abgang!M63) ->  | K24: =IF($D$9="","",IF(F24="","",SUM($D$9:$D$13)-SUM($F$14:F24))) -> 
B25: By Heinr.-Bernh. Münzebrock Version 4.5 | C25: =IF(Tiere_Zu_Abgang!I64="","",Tiere_Zu_Abgang!I64) ->  | F25: =IF(Tiere_Zu_Abgang!J64="","",Tiere_Zu_Abgang!J64) ->  | I25: =IF(Tiere_Zu_Abgang!N64="","",Tiere_Zu_Abgang!N64) ->  | J25: =IF(Tiere_Zu_Abgang!M64="","",Tiere_Zu_Abgang!M64) ->  | K25: =IF($D$9="","",IF(F25="","",SUM($D$9:$D$13)-SUM($F$14:F25))) -> 
C26: =IF(Tiere_Zu_Abgang!I65="","",Tiere_Zu_Abgang!I65) ->  | F26: =IF(Tiere_Zu_Abgang!J65="","",Tiere_Zu_Abgang!J65) ->  | I26: =IF(Tiere_Zu_Abgang!N65="","",Tiere_Zu_Abgang!N65) ->  | J26: =IF(Tiere_Zu_Abgang!M65="","",Tiere_Zu_Abgang!M65) ->  | K26: =IF($D$9="","",IF(F26="","",SUM($D$9:$D$13)-SUM($F$14:F26))) -> 
C27: =IF(Tiere_Zu_Abgang!I66="","",Tiere_Zu_Abgang!I66) ->  | F27: =IF(Tiere_Zu_Abgang!J66="","",Tiere_Zu_Abgang!J66) ->  | I27: =IF(Tiere_Zu_Abgang!N66="","",Tiere_Zu_Abgang!N66) ->  | J27: =IF(Tiere_Zu_Abgang!M66="","",Tiere_Zu_Abgang!M66) ->  | K27: =IF($D$9="","",IF(F27="","",SUM($D$9:$D$13)-SUM($F$14:F27))) -> 
C28: =IF(Tiere_Zu_Abgang!I67="","",Tiere_Zu_Abgang!I67) ->  | F28: =IF(Tiere_Zu_Abgang!J67="","",Tiere_Zu_Abgang!J67) ->  | I28: =IF(Tiere_Zu_Abgang!N67="","",Tiere_Zu_Abgang!N67) ->  | J28: =IF(Tiere_Zu_Abgang!M67="","",Tiere_Zu_Abgang!M67) ->  | K28: =IF($D$9="","",IF(F28="","",SUM($D$9:$D$13)-SUM($F$14:F28))) -> 
C29: =IF(Tiere_Zu_Abgang!I68="","",Tiere_Zu_Abgang!I68) ->  | F29: =IF(Tiere_Zu_Abgang!J68="","",Tiere_Zu_Abgang!J68) ->  | I29: =IF(Tiere_Zu_Abgang!N68="","",Tiere_Zu_Abgang!N68) ->  | J29: =IF(Tiere_Zu_Abgang!M68="","",Tiere_Zu_Abgang!M68) ->  | K29: =IF($D$9="","",IF(F29="","",SUM($D$9:$D$13)-SUM($F$14:F29))) ->  | R29: =R13-Tiere_Zu_Abgang!J83 -> 95
C30: =IF(Tiere_Zu_Abgang!I69="","",Tiere_Zu_Abgang!I69) ->  | F30: =IF(Tiere_Zu_Abgang!J69="","",Tiere_Zu_Abgang!J69) ->  | I30: =IF(Tiere_Zu_Abgang!N69="","",Tiere_Zu_Abgang!N69) ->  | J30: =IF(Tiere_Zu_Abgang!M69="","",Tiere_Zu_Abgang!M69) ->  | K30: =IF($D$9="","",IF(F30="","",SUM($D$9:$D$13)-SUM($F$14:F30))) -> 
C31: =IF(Tiere_Zu_Abgang!I70="","",Tiere_Zu_Abgang!I70) ->  | F31: =IF(Tiere_Zu_Abgang!J70="","",Tiere_Zu_Abgang!J70) ->  | I31: =IF(Tiere_Zu_Abgang!N70="","",Tiere_Zu_Abgang!N70) ->  | J31: =IF(Tiere_Zu_Abgang!M70="","",Tiere_Zu_Abgang!M70) ->  | K31: =IF($D$9="","",IF(F31="","",SUM($D$9:$D$13)-SUM($F$14:F31))) -> 
C32: =IF(Tiere_Zu_Abgang!I71="","",Tiere_Zu_Abgang!I71) ->  | F32: =IF(Tiere_Zu_Abgang!J71="","",Tiere_Zu_Abgang!J71) ->  | I32: =IF(Tiere_Zu_Abgang!N71="","",Tiere_Zu_Abgang!N71) ->  | J32: =IF(Tiere_Zu_Abgang!M71="","",Tiere_Zu_Abgang!M71) ->  | K32: =IF($D$9="","",IF(F32="","",SUM($D$9:$D$13)-SUM($F$14:F32))) -> 
C33: =IF(Tiere_Zu_Abgang!I72="","",Tiere_Zu_Abgang!I72) ->  | F33: =IF(Tiere_Zu_Abgang!J72="","",Tiere_Zu_Abgang!J72) ->  | I33: =IF(Tiere_Zu_Abgang!N72="","",Tiere_Zu_Abgang!N72) ->  | J33: =IF(Tiere_Zu_Abgang!M72="","",Tiere_Zu_Abgang!M72) ->  | K33: =IF($D$9="","",IF(F33="","",SUM($D$9:$D$13)-SUM($F$14:F33))) -> 
C34: =IF(Tiere_Zu_Abgang!I73="","",Tiere_Zu_Abgang!I73) ->  | F34: =IF(Tiere_Zu_Abgang!J73="","",Tiere_Zu_Abgang!J73) ->  | I34: =IF(Tiere_Zu_Abgang!N73="","",Tiere_Zu_Abgang!N73) ->  | J34: =IF(Tiere_Zu_Abgang!M73="","",Tiere_Zu_Abgang!M73) ->  | K34: =IF($D$9="","",IF(F34="","",SUM($D$9:$D$13)-SUM($F$14:F34))) ->  | R34: =R29-SUM(R39:R55) -> 95
C35: =IF(Tiere_Zu_Abgang!I74="","",Tiere_Zu_Abgang!I74) ->  | F35: =IF(Tiere_Zu_Abgang!J74="","",Tiere_Zu_Abgang!J74) ->  | I35: =IF(Tiere_Zu_Abgang!N74="","",Tiere_Zu_Abgang!N74) ->  | J35: =IF(Tiere_Zu_Abgang!M74="","",Tiere_Zu_Abgang!M74) ->  | K35: =IF($D$9="","",IF(F35="","",SUM($D$9:$D$13)-SUM($F$14:F35))) -> 
C36: =IF(Tiere_Zu_Abgang!I75="","",Tiere_Zu_Abgang!I75) ->  | F36: =IF(Tiere_Zu_Abgang!J75="","",Tiere_Zu_Abgang!J75) ->  | I36: =IF(Tiere_Zu_Abgang!N75="","",Tiere_Zu_Abgang!N75) ->  | J36: =IF(Tiere_Zu_Abgang!M75="","",Tiere_Zu_Abgang!M75) ->  | K36: =IF($D$9="","",IF(F36="","",SUM($D$9:$D$13)-SUM($F$14:F36))) -> 
C37: =IF(Tiere_Zu_Abgang!I76="","",Tiere_Zu_Abgang!I76) ->  | F37: =IF(Tiere_Zu_Abgang!J76="","",Tiere_Zu_Abgang!J76) ->  | I37: =IF(Tiere_Zu_Abgang!N76="","",Tiere_Zu_Abgang!N76) ->  | J37: =IF(Tiere_Zu_Abgang!M76="","",Tiere_Zu_Abgang!M76) ->  | K37: =IF($D$9="","",IF(F37="","",SUM($D$9:$D$13)-SUM($F$14:F37))) -> 
C38: =IF(Tiere_Zu_Abgang!I82="","",Tiere_Zu_Abgang!I82) ->  | F38: =IF(Tiere_Zu_Abgang!J77="","",Tiere_Zu_Abgang!J77) ->  | I38: =IF(Tiere_Zu_Abgang!N77="","",Tiere_Zu_Abgang!N77) ->  | J38: =IF(Tiere_Zu_Abgang!M77="","",Tiere_Zu_Abgang!M77) ->  | K38: =IF($D$9="","",IF(F38="","",SUM($D$9:$D$13)-SUM($F$14:F38))) ->  | Z38: =IF(SUM(Y14:Y38)=0,R29,SUM(Y14:Y35)) -> 95
C39: =IF(Tiere_Zu_Abgang!I43="","",Tiere_Zu_Abgang!I43) ->  | E39: =IF(Tiere_Zu_Abgang!J43="","",Tiere_Zu_Abgang!J43) ->  | I39: =IF(Tiere_Zu_Abgang!N43="","",Tiere_Zu_Abgang!N43) ->  | K39: =IF($D$9="","",IF(E39="","",Z38-E39)) -> 
C40: =IF(Tiere_Zu_Abgang!I44="","",Tiere_Zu_Abgang!I44) ->  | E40: =IF(Tiere_Zu_Abgang!J44="","",Tiere_Zu_Abgang!J44) ->  | I40: =IF(Tiere_Zu_Abgang!N44="","",Tiere_Zu_Abgang!N44) ->  | K40: =IF($D$9="","",IF(K39="","",IF(E40="","",K39-E40))) -> 
C41: =IF(Tiere_Zu_Abgang!I45="","",Tiere_Zu_Abgang!I45) ->  | E41: =IF(Tiere_Zu_Abgang!J45="","",Tiere_Zu_Abgang!J45) ->  | I41: =IF(Tiere_Zu_Abgang!N45="","",Tiere_Zu_Abgang!N45) ->  | K41: =IF($D$9="","",IF(K40="","",IF(E41="","",K40-E41))) -> 
C42: =IF(Tiere_Zu_Abgang!I46="","",Tiere_Zu_Abgang!I46) ->  | E42: =IF(Tiere_Zu_Abgang!J46="","",Tiere_Zu_Abgang!J46) ->  | I42: =IF(Tiere_Zu_Abgang!N46="","",Tiere_Zu_Abgang!N46) ->  | K42: =IF($D$9="","",IF(K41="","",IF(E42="","",K41-E42))) -> 
C43: =IF(Tiere_Zu_Abgang!I47="","",Tiere_Zu_Abgang!I47) ->  | E43: =IF(Tiere_Zu_Abgang!J47="","",Tiere_Zu_Abgang!J47) ->  | I43: =IF(Tiere_Zu_Abgang!N47="","",Tiere_Zu_Abgang!N47) ->  | K43: =IF($D$9="","",IF(K42="","",IF(E43="","",K42-E43))) ->  | Z43: =SUM(Y39:Y43) -> 0
C44: =IF(Tiere_Zu_Abgang!I26="","",Tiere_Zu_Abgang!I26) -> 2020-08-20 | E44: =IF(Tiere_Zu_Abgang!J26="","",Tiere_Zu_Abgang!J26) -> 95 | I44: =IF(Tiere_Zu_Abgang!AG26="","",Tiere_Zu_Abgang!AG26) ->  | J44: =IF(Tiere_Zu_Abgang!AE26="","",Tiere_Zu_Abgang!AE26) -> 1 | K44: =IF($D$9="","",IF(E44="","",Z38-E44)) -> 0 | Y44: 0
C45: =IF(Tiere_Zu_Abgang!I27="","",Tiere_Zu_Abgang!I27) ->  | E45: =IF(Tiere_Zu_Abgang!J27="","",Tiere_Zu_Abgang!J27) ->  | I45: =IF(Tiere_Zu_Abgang!AG27="","",Tiere_Zu_Abgang!AG27) ->  | J45: =IF(Tiere_Zu_Abgang!AE27="","",Tiere_Zu_Abgang!AE27) ->  | K45: =IF($D$9="","",IF(K44="","",IF(E45="","",K44-E45))) -> 
C46: =IF(Tiere_Zu_Abgang!I28="","",Tiere_Zu_Abgang!I28) ->  | E46: =IF(Tiere_Zu_Abgang!J28="","",Tiere_Zu_Abgang!J28) ->  | I46: =IF(Tiere_Zu_Abgang!AG28="","",Tiere_Zu_Abgang!AG28) ->  | J46: =IF(Tiere_Zu_Abgang!AE28="","",Tiere_Zu_Abgang!AE28) -> 
C47: =IF(Tiere_Zu_Abgang!I29="","",Tiere_Zu_Abgang!I29) ->  | E47: =IF(Tiere_Zu_Abgang!J29="","",Tiere_Zu_Abgang!J29) ->  | I47: =IF(Tiere_Zu_Abgang!AG29="","",Tiere_Zu_Abgang!AG29) ->  | J47: =IF(Tiere_Zu_Abgang!AE29="","",Tiere_Zu_Abgang!AE29) -> 
C48: =IF(Tiere_Zu_Abgang!I30="","",Tiere_Zu_Abgang!I30) ->  | E48: =IF(Tiere_Zu_Abgang!J30="","",Tiere_Zu_Abgang!J30) ->  | I48: =IF(Tiere_Zu_Abgang!AG30="","",Tiere_Zu_Abgang!AG30) ->  | J48: =IF(Tiere_Zu_Abgang!AE30="","",Tiere_Zu_Abgang!AE30) -> 
C49: =IF(Tiere_Zu_Abgang!I31="","",Tiere_Zu_Abgang!I31) ->  | E49: =IF(Tiere_Zu_Abgang!J31="","",Tiere_Zu_Abgang!J31) ->  | I49: =IF(Tiere_Zu_Abgang!AG31="","",Tiere_Zu_Abgang!AG31) ->  | J49: =IF(Tiere_Zu_Abgang!AE31="","",Tiere_Zu_Abgang!AE31) -> 
C50: =IF(Tiere_Zu_Abgang!I32="","",Tiere_Zu_Abgang!I32) ->  | E50: =IF(Tiere_Zu_Abgang!J32="","",Tiere_Zu_Abgang!J32) ->  | I50: =IF(Tiere_Zu_Abgang!AG32="","",Tiere_Zu_Abgang!AG32) ->  | J50: =IF(Tiere_Zu_Abgang!AE32="","",Tiere_Zu_Abgang!AE32) -> 
C51: =IF(Tiere_Zu_Abgang!I33="","",Tiere_Zu_Abgang!I33) ->  | E51: =IF(Tiere_Zu_Abgang!J33="","",Tiere_Zu_Abgang!J33) ->  | I51: =IF(Tiere_Zu_Abgang!AG33="","",Tiere_Zu_Abgang!AG33) ->  | J51: =IF(Tiere_Zu_Abgang!AE33="","",Tiere_Zu_Abgang!AE33) -> 
C52: =IF(Tiere_Zu_Abgang!I34="","",Tiere_Zu_Abgang!I34) ->  | E52: =IF(Tiere_Zu_Abgang!J34="","",Tiere_Zu_Abgang!J34) ->  | I52: =IF(Tiere_Zu_Abgang!AG34="","",Tiere_Zu_Abgang!AG34) ->  | J52: =IF(Tiere_Zu_Abgang!AE34="","",Tiere_Zu_Abgang!AE34) -> 
C53: =IF(Tiere_Zu_Abgang!I35="","",Tiere_Zu_Abgang!I35) ->  | E53: =IF(Tiere_Zu_Abgang!J35="","",Tiere_Zu_Abgang!J35) ->  | I53: =IF(Tiere_Zu_Abgang!AG35="","",Tiere_Zu_Abgang!AG35) ->  | J53: =IF(Tiere_Zu_Abgang!AE35="","",Tiere_Zu_Abgang!AE35) -> 
C54: =IF(Tiere_Zu_Abgang!I36="","",Tiere_Zu_Abgang!I36) ->  | E54: =IF(Tiere_Zu_Abgang!J36="","",Tiere_Zu_Abgang!J36) ->  | I54: =IF(Tiere_Zu_Abgang!AG36="","",Tiere_Zu_Abgang!AG36) ->  | J54: =IF(Tiere_Zu_Abgang!AE36="","",Tiere_Zu_Abgang!AE36) -> 
C55: =IF(Tiere_Zu_Abgang!I37="","",Tiere_Zu_Abgang!I37) ->  | E55: =IF(Tiere_Zu_Abgang!J37="","",Tiere_Zu_Abgang!J37) ->  | I55: =IF(Tiere_Zu_Abgang!AG37="","",Tiere_Zu_Abgang!AG37) ->  | J55: =IF(Tiere_Zu_Abgang!AE37="","",Tiere_Zu_Abgang!AE37) -> 

Sheet Arzneimittelbuch (hidden)
P2: Strg+d = drucken
C3: Arzneimittelbuch / Behandlungsbuch (Schweine) | J3: =Bestandsregister!D5 -> ,
M4: Betriebsnummer: | O4: =Bestandsregister!K5 -> 0
C5: Tierarzt: (Name u. Anschrift) | K5: Stall / Ställe / Partie - Nr.: | O5: =Bestandsregister!N3 -> 1
K6: Standort: | O6: =Auswertung!N4 -> 0
N8: Blatt:
C12: Datum der Behandlung | F12: Bucht- | G12: Diagnose | H12: Arzneimittel | J12: Tierärztl Abgabe- | K12: Tierärztl Abgabe- | L12: Verab-reichung | M12: Dosierung/Tier u. | N12: Dauer der An- | O12: Warte- | P12: Anwender
D13: Anzahl Tiere: | E13: Stall- Nr.: | F13: Ventil o. Sau Nr. | H13: Bezeichnung: | I13: Charge Nr.: | J13: beleg Datum | K13: beleg Nr.: | L13: (i.m / Futter) | M13: Tag ml / g / kg | N13: wendung (Tage) | O13: zeit (Tage)
H116: =Bestandsregister!B25 -> By Heinr.-Bernh. Münzebrock Version 4.5

Sheet QS (hidden)
C3: Datum: | K3: Datum:
C5: Checkliste Eigenkontrolle Schwein Stichprobenkontrolle | D5: Checkliste Eigenkontrolle Schwein Stichprobenkontrolle | K5: Checkliste Eigenkontrolle Schwein Produtionsbedingungen | L5: Checkliste Eigenkontrolle Schwein Produtionsbedingungen
C8: Name: | D8: =CONCATENATE(Auswertung!D5,", ",Auswertung!D6) -> , | K8: Name: | L8: =D8 -> ,
C9: Stall/Betriebsstätte: | K9: Stall/Betriebsstätte:
C10: =IF($G$2="","","Datum der Eigenkontrolle:") ->  | F10: =IF($G$2=""," Datum der Eigenkontrolle:",IF($D$3="",TODAY(),$D$3)) -> Datum der Eigenkontrolle: | N10: Datum der Eigenkontrolle: | Q10: =IF(L3="",TODAY(),L3) -> 2020-09-01
G11: Ergebnis i.O. nicht i.O. | O11: Ergebnis i.O. nicht i.O.
F13: Beurteilung | I13: Bemerkung | N13: Beurteilung | Q13: Bemerkung
C14: Herkunftssicherung | E14: 1 | F14: Kennzeichnung der Tiere | G14: =IF(H14<>"","","X") -> X | K14: Herkunftssicherung | M14: 1 | N14: Kennzeichnung der Tiere | O14: =IF(P14<>"","","X") -> X
E15: 2 | F15: Bestandsregister | G15: =IF(H15<>"","","X") -> X | M15: 2 | N15: Bestandsregister | O15: X
E16: 3 | F16: Belege für Tierbewegung | G16: =IF(H16<>"","","X") -> X | M16: 4 | N16: Belege für Tierbewegung | O16: X
K17: Tierschutz | M17: 1 | N17: Böden | O17: X
C18: =IF($G$2="","","Datum der Eigenkontrolle:") ->  | F18: =IF($G$2=""," Datum der Eigenkontrolle:",$F$10+$G$2+1) -> Datum der Eigenkontrolle: | M18: 2 | N18: Flächenangebot | O18: X
G19: Ergebnis i.O. nicht i.O. | M19: 3 | N19: Beschäftigungsmöglichkeit | O19: X
M20: 4 | N20: Beleuchtung | O20: X
F21: Beurteilung | I21: Bemerkung | M21: 5 | N21: Stallklima | O21: X
C22: Herkunftssicherung | E22: 1 | F22: Kennzeichnung der Tiere | G22: =IF(H22<>"","","X") -> X | M22: 6 | N22: Stalltemperatur | O22: X
E23: 2 | F23: Bestandsregister | G23: =IF(H23<>"","","X") -> X | M23: 7 | N23: Vorsorge vor Betriebsstörungen | O23: X
E24: 3 | F24: Belege für Tierbewegung | G24: =IF(H24<>"","","X") -> X | M24: 8 | N24: Fütterung und Pflege der Tiere | O24: X
M25: 9 | N25: Überwachung der Anlage | O25: X
C26: =IF($G$2="","","Datum der Eigenkontrolle:") ->  | F26: =IF($G$2=""," Datum der Eigenkontrolle:",$F$18+$G$2+1) -> Datum der Eigenkontrolle: | K26: Arzneimittel VO | M26: 1 | N26: Betreuungsvertrag | O26: X
B27: by Heinr.-Bernh. Münzebrock Version 4.5 | G27: Ergebnis i.O. nicht i.O. | M27: 2 | N27: Nachweise ü. Bezug v. Arzneim. | O27: X
M28: 3 | N28: Bestandsbuch | O28: X
F29: Beurteilung | I29: Bemerkung | M29: 4 | N29: Medikamentenaufbewahrung | O29: X
C30: Herkunftssicherung | E30: 1 | F30: Kennzeichnung der Tiere | G30: =IF(H30<>"","","X") -> X | K30: Futtermittel | M30: 1 | N30: Offene Deklaration | O30: X
E31: 2 | F31: Bestandsregister | G31: =IF(H31<>"","","X") -> X | M31: 2 | N31: Einhaltung der Positivliste | O31: X
E32: 3 | F32: Belege für Tierbewegung | G32: =IF(H32<>"","","X") -> X | M32: 3 | N32: Verzicht auf Leistungsförderer | O32: X
M33: 4 | N33: Futteruntersuchungsergebnisse | O33: X
C34: =IF($G$2="","","Datum der Eigenkontrolle:") ->  | F34: =IF($G$2=""," Datum der Eigenkontrolle:",$F$26+$G$2+1) -> Datum der Eigenkontrolle: | M34: 5 | N34: Lieferscheine, Abrechnungen | O34: X
G35: Ergebnis i.O. nicht i.O. | M35: 6 | N35: Technische Einrichtung f. Futterher. | O35: X
M36: 7 | N36: Lagerung | O36: X
F37: Beurteilung | I37: Bemerkung | M37: 8 | N37: Futter-Misch-Protokoll | O37: X
C38: Herkunftssicherung | E38: 1 | F38: Kennzeichnung der Tiere | G38: =IF(H38<>"","","X") -> X | K38: Hygiene | M38: 1 | N38: Bauzustand | O38: X
E39: 2 | F39: Bestandsregister | G39: =IF(H39<>"","","X") -> X | M39: 2 | N39: Hinweisschild | O39: X
E40: 3 | F40: Belege für Tierbewegung | G40: =IF(H40<>"","","X") -> X | M40: 3 | N40: Reinigung und Desinfektion | O40: X
M41: 4 | N41: Schutzkleidung f. betriebsf. Pers. | O41: X
C42: =IF($G$2="","","Datum der Eigenkontrolle:") ->  | F42: =IF($G$2=""," Datum der Eigenkontrolle:",$F$34+$G$2+1) -> Datum der Eigenkontrolle: | M42: 5 | N42: Schutz vor Wildschweinen | O42: X
G43: Ergebnis i.O. nicht i.O. | M43: 6 | N43: Dokumentation der Tierverluste | O43: X
M44: 7 | N44: Kadaverlagerung | O44: X
F45: Beurteilung | I45: Bemerkung | M45: 8 | N45: Schadnagerbekämpfung | O45: X
C46: Herkunftssicherung | E46: 1 | F46: Kennzeichnung der Tiere | G46: =IF(H46<>"","","X") -> X | M46: 9 | N46: Dungausbringung | O46: X
E47: 2 | F47: Bestandsregister | G47: =IF(H47<>"","","X") -> X | K47: zusätzlich bei | M47: 1 | N47: Stallabteile | O47: X
E48: 3 | F48: Belege für Tierbewegung | G48: =IF(H48<>"","","X") -> X | K48: > 700 MS, > 150 Sauen | M48: 2 | N48: Betriebseinfriedigung | O48: X
M49: 3 | N49: Ver- und Entladeeinrichtung | O49: X
C50: =IF($G$2="","","Datum der Eigenkontrolle:") ->  | F50: =IF($G$2=""," Datum der Eigenkontrolle:",$F$42+$G$2+1) -> Datum der Eigenkontrolle: | M50: 4 | N50: Umkleideraum | O50: X
G51: Ergebnis i.O. nicht i.O. | M51: 5 | N51: Isolierstall | O51: X
K52: Umwelt | M52: 1 | N52: Nährstoffvergleich | O52: X
F53: Beurteilung | I53: Bemerkung | M53: 2 | N53: Verwertung v. Wirtschaftsdüngern | O53: X
C54: Herkunftssicherung | E54: 1 | F54: Kennzeichnung der Tiere | G54: =IF(H54<>"","","X") -> X | M54: 3 | N54: Ausbringung von Wirtschaftsd. | O54: X
E55: 2 | F55: Bestandsregister | G55: =IF(H55<>"","","X") -> X | M55: 4 | N55: Lagerkapazität | O55: X
E56: 3 | F56: Belege für Tierbewegung | G56: =IF(H56<>"","","X") -> X | K56: Salmonellen | M56: 1 | N56: Teilnahme Salmonellenprogramm | O56: X
M57: 2 | N57: Ergebnisse der Untersuchungen | O57: X
K58: Befunddaten | M58: 1 | N58: Ergebnisse Organveränderungen | O58: X

Sheet Info (hidden)
C3: Auswertung Schweinemast
C5: von Heinr. - Bernh. Münzebrock, Voerdenerstr. 7, 49434 Neuenkirchen Tel.:05493/5688
C6: E-mail:HBM49434@Freenet.de
C8: Diese Auswertung Schweinemast darf bis auf Widerruf verwendet-, aber nicht kopiert oder verkauft werden.
C11: Ausfüllanleitung
C13: Achtung: Nur die weiss unterlegten Felder sind Eingabefelder - Bitte nur Nettopreise eingeben!!!
C16: Allgemein:
C18: Bitte geben Sie in der Mappe "Auswertung" als erstes Ihren Namen, Ort und Ihre Betriebsnummer in die dafür
C19: vorbereiteten Felder ein. Die Eingaben auf der rechten Seite sind optional.
C22: Tiere_Zu_Abgang
C24: Hier können Sie alle Zu- und Abgänge eingeben. Alle weissen Felder dienen der Dateneingabe. Der Rest wird vom
C25: Computer ausgefüllt. Sie sollten, um eine korrekte Auswertung zu erhalten, alle Daten eingeben.
C28: Futter
C30: Bitte gehen Sie hierbei sorgfältig vor und tragen alle geforderten Daten ein. Sie können den Lieferanten, die Futter-
C31: sorten, Lieferungen und, falls vorhanden, Kontraktpreise eingeben.
C33: Achtung: Die Eingabe eines Kontraktpreises bei einer Futtersorte gilt für das komplette darunterstehende Eingabefeld.
C34: Die Angabe des Gesamtpreises entfällt, da der Computer anhand der gelieferten Menge die Summe errechnet. Falls
C35: sich im Laufe des Durchgangs der Kontraktpreis ändert, haben Sie die Möglichkeit auf Seite 3 die Futtersorte mit dem
C36: neuen Preis einzurichten.
C38: Wenn Sie keinen Kontraktpreis haben, müssen Sie bei jeder Lieferung den Gesamtpreis - Netto angeben.
C41: Kosten
C43: In diesen Bereich sollten Sie, wenn möglich, alle anfallenden Kosten angeben. Dabei ist zwischen Kosten / Durchgang
C44: und Kosten / Jahr zu unterscheiden. Bei den jährlichen Kosten kann es vorkommen, dass keine Mwst anfällt,
C45: z. B. Lohn usw.. Hier haben Sie die Möglichkeit, dass, durch Eingabe eines Sterns vor der Kostenart, die Berechnung
C46: grundsätzlich ohne Mwst erfolgt.
C48: Einige, häufig anfallende, Kostenarten sind vorgegeben, andere können Sie betriebsindividuell eingeben.
C51: Bestandsregister
C53: Das Register wird, bei korrekten Eingaben im Bereich "Tiere_Zu_Abgang", vom Computer ausgefüllt. Zusätzliche
C54: Angaben wie z.B. Seiten-Nr., Stallreinigung usw können Sie hinzufügen.
C57: Arzneimittelbuch
C59: Hier können Sie alle Behandlungen, die im Laufe eines Durchgangs notwendig sind, eintragen.
C62: Auswertung
C64: Achtung: Eine Auswertung kann nur dann erfolgen, wenn alle Daten korrekt und vollständig eingegeben worden sind!!!.
C66: Wie der Name schon sagt: Auf diesem Blatt erfolgt, wenn der Durchgang beendet ist, eine Auswertung aller mastrelevanten
C67: Angaben aus den oben beschriebenen Seiten einschl. Deckungsbeitragsberechnung. Die Berechnung erfolgt, je nach Wunsch,
C68: mit- oder ohne Mwst.
C70: Im laufenden Durchgang werden nur die Daten angezeigt, die bis Dato vorhanden sind. Eine Auswertung entfällt zu diesem
C71: Zeitpunkt.
C74: Datenausdruck:
C76: Hier stehen Ihnen das Makro: Tastenkombination Strg+d -, oder die konventionelle Methode zur Verfügung.
C77: Ohne die Aktivierung des Makros können Sie aus dieser Arbeitsmappe einzelne Bereiche- oder auch alle Blätter ausdrucken.
C78: Um eine einzelne Seite auszudrucken, gehen Sie in das entsprechende Blatt. Dann drücken Sie auf den Link "Datei" und
C79: klicken auf "Seitenansicht". Jetzt klicken Sie die Taste "Drucken". Danach öffnet sich ein Fenster mit zwei Kästchen.
C80: Sie wählen das Kästchen neben "Seiten" und geben die entsprechende Seiten-nummer(n) für Ihren gewählten Bereich an.
C81: Noch ein Klick auf "OK", und der Druck erfolgt (wenn Sie Papier eingelegt haben).
C83: Alle Blätter der Arbeitsmappe ausdrucken ist ganz einfach. Sie klicken mit der Maus auf den Link "Datei", und wählen
C84: "Drucken". Jetzt noch ein Klick auf "OK", und schon kann der Druck beginnen.
C87: Wenn Sie Fragen oder Anregungen haben, rufen Sie mich an, oder schreiben mir.
C90: H.B.M.
C92: PS: Wenn Ihnen diese Arbeitsmappe eine kleine Hilfe ist, dann bitte ich um eine kleine Spende an o.g. Adresse.

Sheet Modul1 (hidden)

Sheet Modul2 (hidden)

Sheet Modul3 (hidden)

Sheet Modul4 (hidden)

Sheet Modul5 (hidden)

Sheet Modul6 (hidden)
